Cogmind - Beta 9.4 @@@ ROGUE MODE // 2020.02.23 @ 21:55:03 Player: PlasticHeart Result: Destroyed by Combat Programmer with EMDS Performance ------------- Evolutions (9) 4500 Regions Visited (37) 7400 Robots Destroyed (287) 1435 Value Destroyed (10313) 10313 Prototype IDs (110) 2200 Alien Tech Used (13) 2600 Bonus (7423) 7423 TOTAL SCORE: 35871 Bonus ------- High Alert Combat Kills 1510 Follower Combat Kills 339 Met Data Miner 300 Met Imprinter 300 Met Zhirov 300 Met Warlord at Base 500 MAIN.C Attacked Warlord 500 Warlord Defense Kill 194 Met Warlord at Research 2000 Scanned by Researcher 500 Pursued by Intercept 1000 Friendly Fire -20 Cogmind --------- Core Integrity 0/1600 Matter 368/425 Energy 99/100 System Corruption 0% Temperature Cool (0) Movement Core (50) Location -1/Access Parts ------- > --- POWER (2) -------- (None) > --- PROPULSION (7) --- (None) > --- UTILITY (15) ----- Experimental Signal Interpreter Experimental Targeting Computer Advanced Core Analyzer > --- WEAPON (2) ------- (None) > --- INVENTORY (6) ---- Thermal Barrier Sigix Quantum Sheargun Cooled Proton Cannon Peak State ------------ > --- POWER ------------ Light Antimatter Reactor Compact Particle Reactor > --- PROPULSION ------- Cooled Antigrav System Cooled Antigrav System Cooled Antigrav System Combat Antigrav System Combat Antigrav System Combat Linear Gravjet Combat Linear Gravjet > --- UTILITY ---------- Large Storage Unit Large Storage Unit High-capacity Storage Unit Experimental Sensor Array Experimental Signal Interpreter Experimental Targeting Computer Experimental Core Analyzer Improved Overload Amplifier Experimental Phase Shifter Centrium Medium Armor Plating SHELL Armor Experimental Focal Shield Advanced Force Field > --- WEAPON ----------- EMDS > --- INVENTORY -------- Advanced Energy Well Experimental Sensor Array Advanced Core Analyzer Quantum Capacitor Thermal Barrier Core Regenerator Sigix Quantum Sheargun Cooled Proton Cannon Linked Autogun [Rating: 211] Favorites ----------- Power Micro Fission Core Engine Ion Engine Power Core Micro Fission Core Reactor Vortex Chain Reactor Propulsion Cooled Airjet Treads Light Treads Leg Carbon-fiber Leg Wheel Wheel Hover Unit Cooled Airjet Flight Unit Flight Unit Utility Large Storage Unit Device Experimental Sensor Array Storage Large Storage Unit Processor Experimental Signal Interpreter Hackware Advanced Hacking Suite Protection Light Regenerative Plating Artifact Phase Redirector Weapon Improved Datajack Energy Gun Variable Charge Gun Energy Cannon Compact Ion Cannon Ballistic Gun Enhanced Autogun Ballistic Cannon Compact Mass Driver Launcher Guided EMP Blaster Special Weapon Remote Datajack Slashing Weapon Scythe Piercing Weapon Kinetic Spear Special Melee Weapon Improved Datajack Build | -11 -10 -9 -8 -7 -7 -7 -7 -7 -7 -6 -6 -6 -6 -6 -6 -6 -5 -5 -5 -5 -5 -5 -5 -4 -4 -4 -4 -4 -4 -4 -3 -3 -3 -2 -2 -2 -1 ------- Run | Scr Mat Mat Mat Fac Was Fac Low Low Zio Pro Fac Was Fac Low Low Dat Pro Fac Was Fac Upp Upp Zhi Pro Fac Was Fac Upp Upp War Pro Res Qua Res Tes Sec Acc Slots Evolved 18 | . . 2 2 2 . . . . . . 2 . . . . . . 2 . . . . . . 2 . . . . . . 2 . 2 . . 2 Power 1 | . . . . 1 . . . . . . . . . . . . . . . . . . . . . . . . . . . . . . . . . Propulsion 4 | . . 1 1 . . . . . . . . . . . . . . 1 . . . . . . 1 . . . . . . . . . . . . Utility 13 | . . 1 1 1 . . . . . . 2 . . . . . . 1 . . . . . . 1 . . . . . . 2 . 2 . . 2 Weapon . | . . . . . . . . . . . . . . . . . . . . . . . . . . . . . . . . . . . . . . Parts Attached 441 | 7 . 33 47 19 4 9 . . . . 17 6 15 15 6 . 3 13 . 27 2 4 4 . 12 . 19 11 2 5 3 14 15 16 6 92 15 Power 28 | 1 . 2 3 4 . 1 . . . . . . 3 . . . . 2 . 3 . . 2 . 2 . . . . . 1 . . . . 3 1 Engine 2 | 1 . 1 . . . . . . . . . . . . . . . . . . . . . . . . . . . . . . . . . . . Core 19 | . . 1 3 4 . 1 . . . . . . 3 . . . . 2 . 3 . . 1 . 1 . . . . . . . . . . . . Reactor 7 | . . . . . . . . . . . . . . . . . . . . . . . 1 . 1 . . . . . 1 . . . . 3 1 Propulsion 102 | 2 . 13 20 7 4 1 . . . . 2 3 7 4 . . . 4 . 1 . . . . 7 . 8 . . 2 1 4 1 1 1 9 . Treads 2 | . . . 2 . . . . . . . . . . . . . . . . . . . . . . . . . . . . . . . . . . Leg 2 | . . 1 1 . . . . . . . . . . . . . . . . . . . . . . . . . . . . . . . . . . Wheel 31 | 2 . 12 16 . . . . . . . . . . . . . . . . . . . . . . . . . . . . 1 . . . . . Hover 58 | . . . . . 4 1 . . . . 2 2 7 4 . . . 4 . 1 . . . . 7 . 8 . . 2 1 3 1 1 1 9 . Flight 9 | . . . 1 7 . . . . . . . 1 . . . . . . . . . . . . . . . . . . . . . . . . . Utility 188 | 2 . 3 11 5 . 3 . . . . 9 2 4 2 6 . . 6 . 23 . . 2 . 2 . 9 4 2 1 1 10 7 11 5 50 8 Device 117 | . . 1 2 1 . 1 . . . . 1 2 1 1 5 . . 4 . 18 . . 1 . 1 . 3 4 1 1 . 7 4 7 3 45 3 Storage 18 | 2 . 2 3 . . 2 . . . . . . 1 . . . . 2 . 2 . . . . . . 1 . . . . 1 1 . . . 1 Processor 6 | . . . . 1 . . . . . . 1 . 1 . . . . . . . . . . . . . . . . . . . . 1 . . 2 Hackware 16 | . . . . 3 . . . . . . 7 . . . 1 . . . . 3 . . 1 . . . . . . . . 1 . . . . . Protection 30 | . . . 6 . . . . . . . . . 1 1 . . . . . . . . . . 1 . 5 . 1 . 1 1 1 3 2 5 2 Artifact 1 | . . . . . . . . . . . . . . . . . . . . . . . . . . . . . . . . . 1 . . . . Weapon 123 | 2 . 15 13 3 . 4 . . . . 6 1 1 9 . . 3 1 . . 2 4 . . 1 . 2 7 . 2 . . 7 4 . 30 6 Energy Gun 17 | 1 . 8 1 . . 2 . . . . . 1 . . . . . . . . . . . . . . . . . . . . 1 . . 2 1 Energy Cannon 27 | . . . . . . . . . . . 2 . . . . . . . . . . . . . . . . 2 . . . . 1 1 . 18 3 Ballistic Gun 16 | 1 . 3 10 . . . . . . . . . . . . . . . . . . . . . . . . . . . . . . . . . 2 Ballistic Cannon 1 | . . . . . . . . . . . . . . . . . . . . . . . . . . . . . . . . . 1 . . . . Launcher 16 | . . 4 . . . . . . . . . . . 3 . . 1 . . . 1 1 . . . . 1 3 . 1 . . . . . 1 . Special Weapon 1 | . . . . 1 . . . . . . . . . . . . . . . . . . . . . . . . . . . . . . . . . Impact Weapon . | . . . . . . . . . . . . . . . . . . . . . . . . . . . . . . . . . . . . . . Slashing Weapon 25 | . . . 2 2 . 2 . . . . 2 . . 3 . . 1 . . . . . . . . . . . . . . . 1 3 . 9 . Piercing Weapon 9 | . . . . . . . . . . . . . . . . . . 1 . . . 2 . . . . 1 2 . 1 . . 2 . . . . Special Melee Weapon 11 | . . . . . . . . . . . 2 . 1 3 . . 1 . . . 1 1 . . 1 . . . . . . . 1 . . . . Unidentified Prototypes 23 | . . 1 2 . . . . . . . . 1 . . . . . . . . . . 2 . . . . . . . . . 2 1 1 10 3 Parts Lost 61 | . . 14 13 . . . . . . . . . 3 . . . . 1 . . . . . . . . 1 . . . . . . . . 14 15 Power 4 | . . 1 1 . . . . . . . . . . . . . . . . . . . . . . . . . . . . . . . . 1 1 Propulsion 25 | . . 7 8 . . . . . . . . . . . . . . 1 . . . . . . . . . . . . . . . . . 4 5 Utility 20 | . . . 2 . . . . . . . . . 2 . . . . . . . . . . . . . 1 . . . . . . . . 8 7 Weapon 12 | . . 6 2 . . . . . . . . . 1 . . . . . . . . . . . . . . . . . . . . . . 1 2 Highest Loss Streak 12 | . . 9 5 . . . . . . . . . 2 . . . . 1 . . . . . . . . 1 . . . . . . . . 4 12 Average Slot Usage (%) 96 | . 100 84 97 92 97 99 100 100 100 100 100 100 96 97 99 100 99 100 100 100 98 99 98 100 99 100 99 100 100 100 99 94 92 91 84 82 70 Core 8 | . . . 8 12 15 14 15 15 15 15 13 13 12 13 13 13 13 11 11 11 11 11 11 11 9 5 5 5 5 5 4 . . . . . . Reactor 1 | . . . . . . . . . . . . . . . . . . . . . . . . . . 5 5 5 5 5 5 4 4 4 4 5 5 Wheel 3 | . 28 30 29 . . . . . . . . . . . . . . . . . . . . . . . . . . . . . . . . . . Hover 23 | . . . . . . 30 30 30 30 30 26 26 25 26 26 26 26 29 29 29 29 29 29 29 30 31 30 31 31 31 31 27 28 26 26 26 20 Device 7 | . . 3 2 7 7 7 7 7 7 7 6 6 6 9 7 6 6 5 5 5 5 5 3 5 9 10 7 5 5 9 8 8 9 15 13 13 10 Storage 10 | . 28 22 18 . . 5 7 7 7 7 6 6 6 6 6 6 6 11 11 11 11 11 11 11 10 10 11 15 15 15 15 14 14 13 13 12 10 Processor 5 | . . . . 6 7 7 7 7 7 7 6 6 5 6 6 6 6 5 5 5 5 5 5 5 5 5 5 5 5 5 5 4 4 7 8 8 13 Hackware 16 | . . . . 22 23 16 15 15 15 15 26 26 23 20 22 26 26 23 23 23 23 23 23 23 21 21 17 15 15 15 15 19 18 11 8 4 . Protection 2 | . . . 14 . . . . . . . . . . 2 2 . . . . . . . . . . . 3 5 5 . 1 4 4 7 5 6 5 Ballistic Gun 1 | . 14 7 17 . . . . . . . . . . . . . . . . . . . . . . . . . . . . . . . . . . Special Weapon 1 | . . . . 6 7 7 7 7 7 7 . . . . . . . . . . . . . . . . . . . . . . . . . . . Slashing Weapon 2 | . . . . 6 7 6 7 7 7 7 5 6 6 3 6 6 5 4 . . . . . . . . . . . . . . 1 4 4 1 . Piercing Weapon 1 | . . . . . . . . . . . . . . . . . . . 5 5 4 4 5 5 5 5 4 3 5 4 5 4 2 . . . . Special Melee Weapon 2 | . . . . . . . . . . . 1 4 1 4 6 6 5 5 5 5 4 4 5 5 5 5 5 5 5 5 5 4 2 . . . . Naked Turns . | . . . . . . . . . . . . . . . . . . . . . . . . . . . . . . . . . . . . . . Heaviest Build 171 | 16 16 35 51 16 16 36 33 33 33 33 39 35 48 54 48 47 47 63 46 75 71 71 71 71 76 76 95 97 95 95 107 112 127 133 144 171 168 Greatest Support 214 | 26 26 42 52 22 52 70 70 52 52 52 52 52 52 62 50 50 50 75 81 75 75 75 75 75 95 95 101 100 100 106 113 118 121 136 151 214 184 Greatest Overweight (x) 50 | . . 4 5 1 . . . . . . . . . 1 . . . . . . . . . . 1 . 1 . . . . . 1 . . 50 9 Average Overweight (x) . | . . . 1 . . . . . . . . . . . . . . . . . . . . . . . . . . . . . . . . . . Largest Inventory Capacity 26 | 8 8 14 14 14 4 10 10 10 10 10 10 10 12 12 12 12 12 18 16 18 18 18 18 18 18 18 24 24 24 24 24 24 24 24 24 26 26 Average Capacity 15 | 6 8 9 14 4 4 8 10 10 10 10 10 10 10 12 12 12 12 16 16 17 18 18 18 18 18 18 20 24 24 24 24 24 24 24 24 24 22 Most Carried 25 | 7 8 12 14 14 4 10 10 10 10 10 10 10 10 12 12 12 12 18 16 18 18 18 18 18 18 18 24 22 23 24 24 24 24 24 24 25 15 Average Carried 14 | 2 7 7 13 3 3 8 10 10 10 10 9 9 9 11 11 12 11 15 16 16 17 17 17 18 16 17 19 22 21 23 23 22 23 23 23 22 9 Final Capacity 26 | 8 8 14 14 4 4 10 10 10 10 10 10 10 12 12 12 12 12 16 16 18 18 18 18 18 18 18 24 24 24 24 24 24 24 24 24 26 6 Final Carried 24 | 7 8 12 14 4 1 10 10 10 10 10 10 10 10 12 12 12 12 16 16 17 18 18 18 18 17 17 22 22 21 24 21 24 24 23 23 16 3 Class Distribution -------------------- 59% | Hacker-Mutant 23% | Hacker-Sprinter 10% | Scavenger-Mutant 3% | Mutant Dominant Class ---------------- Mutant | -10/Materials Scavenger-Mutant | -9/Materials Scavenger-Mutant | -8/Materials Hacker-Sprinter | -7/Factory Hacker-Sprinter | -7/Waste Hacker-Mutant | -7/Factory Hacker-Mutant | -7/Lower Caves Hacker-Mutant | -7/Lower Caves Hacker-Mutant | -7/Zion Hacker-Mutant | -6/Proximity Caves Hacker-Mutant | -6/Factory Hacker-Mutant | -6/Waste Hacker-Sprinter | -6/Factory Hacker-Mutant | -6/Lower Caves Hacker-Sprinter | -6/Lower Caves Hacker-Sprinter | -6/Data Miner Hacker-Sprinter | -5/Proximity Caves Hacker-Sprinter | -5/Factory Hacker-Mutant | -5/Waste Hacker-Mutant | -5/Factory Hacker-Mutant | -5/Upper Caves Hacker-Mutant | -5/Upper Caves Hacker-Mutant | -5/Zhirov Hacker-Mutant | -4/Proximity Caves Hacker-Mutant | -4/Factory Hacker-Mutant | -4/Waste Hacker-Sprinter | -4/Factory Hacker-Sprinter | -4/Upper Caves Hacker-Sprinter | -4/Upper Caves Hacker-Sprinter | -4/Warlord Hacker-Sprinter | -3/Proximity Caves Hacker-Mutant | -3/Research Hacker-Mutant | -3/Quarantine Hacker-Mutant | -2/Research Hacker-Mutant | -2/Testing Hacker-Mutant | -2/Section 7 Scavenger-Mutant | -1/Access Resources | -11 -10 -9 -8 -7 -7 -7 -7 -7 -7 -6 -6 -6 -6 -6 -6 -6 -5 -5 -5 -5 -5 -5 -5 -4 -4 -4 -4 -4 -4 -4 -3 -3 -3 -2 -2 -2 -1 ----------- Run | Scr Mat Mat Mat Fac Was Fac Low Low Zio Pro Fac Was Fac Low Low Dat Pro Fac Was Fac Upp Upp Zhi Pro Fac Was Fac Upp Upp War Pro Res Qua Res Tes Sec Acc Matter Collected 7924 | 312 18 522 1705 237 . 192 25 . . . 204 67 176 454 105 . 78 125 . 386 41 77 120 . 80 40 254 410 . 90 30 134 99 240 50 1151 502 Remotely . | . . . . . . . . . . . . . . . . . . . . . . . . . . . . . . . . . . . . . . Salvage Created 13495 | 188 42 1001 2791 235 . 345 63 . . . 808 287 511 849 . . 68 283 . 361 100 31 127 . 215 . 682 528 . 38 142 520 166 402 253 2079 380 Parts 635 | 16 3 73 151 12 . 19 2 . . . 30 2 22 25 . . . 5 . 25 2 4 2 . 6 . 37 15 . 3 3 30 7 12 14 99 16 Haulers Intercepted 31 | . . 3 6 4 . . . . . . 5 . 2 . . . . 2 . 2 . . . . 2 . 3 . . . . 1 . 1 . . . Recyclers Shooed 9 | 1 . 1 2 1 . 2 . . . . . . . . . . . . . . . . . . . . 1 . . . . . . . 1 . . Parts Field Recycled . | . . . . . . . . . . . . . . . . . . . . . . . . . . . . . . . . . . . . . . Retrieved Matter . | . . . . . . . . . . . . . . . . . . . . . . . . . . . . . . . . . . . . . . Parts Self-Destructed 91 | . . . . . . . 7 . . 4 . . . 7 . . 6 . . . 2 4 2 . . . . 10 . 49 . . . . . . . Prevented 31 | . . . . . . . . . . . . . . 19 . . . . . . . . . . . . . 2 . 10 . . . . . . . Kills | -11 -10 -9 -8 -7 -7 -7 -7 -7 -7 -6 -6 -6 -6 -6 -6 -6 -5 -5 -5 -5 -5 -5 -5 -4 -4 -4 -4 -4 -4 -4 -3 -3 -3 -2 -2 -2 -1 ------- Run | Scr Mat Mat Mat Fac Was Fac Low Low Zio Pro Fac Was Fac Low Low Dat Pro Fac Was Fac Upp Upp Zhi Pro Fac Was Fac Upp Upp War Pro Res Qua Res Tes Sec Acc Combat Hostiles Destroyed 158 | . 1 20 44 . . . . . . . 1 1 . 15 . . 1 . . . 4 5 . . . . 6 10 . 3 . 2 2 1 2 34 6 Melee 16 | . . . . . . . . . . . . . . . . . . . . . . . . . . . 3 1 . . . 2 . 1 2 7 . Guns 63 | . 1 12 44 . . . . . . . . 1 . . . . . . . . . . . . . . . . . . . . . . . 3 2 Cannons 11 | . . . . . . . . . . . 1 . . . . . . . . . . . . . . . . 1 . . . . . . . 7 2 AOE 47 | . . 8 . . . . . . . . . . . 10 . . . . . . 4 5 . . . . 3 8 . 3 . . . . . 6 . Classes Destroyed 19 | 3 1 7 . . . . 1 . . . 1 1 1 2 . . . . . . . . . . . . . . . . . . . . . 2 . Worker 32 | 2 . . 6 1 . 4 . . . . 1 . 2 . . . . 1 . 3 . . . . . . 6 . . . . 2 . 1 . 3 . Builder 4 | . . 1 3 . . . . . . . . . . . . . . . . . . . . . . . . . . . . . . . . . . Tunneler 6 | 3 . 2 1 . . . . . . . . . . . . . . . . . . . . . . . . . . . . . . . . . . Hauler 31 | . . 3 6 4 . . . . . . 5 . 2 . . . . 2 . 2 . . . . 2 . 3 . . . . 1 . 1 . . . Recycler 14 | 1 . 1 4 . . 2 . . . . 1 . 1 . . . . . . . . . . . . . 1 . . . . 1 . 1 1 . . Mechanic 1 | . . . . . . . . . . . . . 1 . . . . . . . . . . . . . . . . . . . . . . . . Operator 9 | . . 3 2 . . 1 . . . . 1 . . . . . . . . . . . . . . . 1 . . . . 1 . . . . . Watcher 24 | . . 1 4 1 . 3 . . . . 3 . 3 . . . . 1 . 3 . . . . . . . . . . . 3 . 2 . . . Swarmer 47 | . . 3 15 . . . . . . . . . . 4 . . . . . . . 5 . . . . 4 4 . 3 . . . . . 7 2 Grunt 53 | . 1 13 19 . . . . . . . . . . 5 . . 1 . . . 4 . . . . . . 6 . . . . . 1 . 3 . Brawler 1 | . . . . . . . . . . . . . . 1 . . . . . . . . . . . . . . . . . . . . . . . Duelist 4 | . . 1 . . . . . . . . . . . 2 . . . . . . . . . . . . . . . . . . . . . 1 . Researcher 2 | . . . . . . . . . . . . . . . . . . . . . . . . . . . . . . . . . . . . 2 . Sentry 18 | . . 3 10 . . . . . . . . . . 1 . . . . . . . . . . . . . . . . . . . . . 4 . Hunter 8 | . . . . . . . . . . . . . . 2 . . . . . . . . . . . . . . . . . . 2 . . 2 2 Programmer 15 | . . . . . . . . . . . 1 . . . . . . . . . . . . . . . 2 . . . . 2 . . 2 8 . Compactor 1 | . . . . . . . . . . . . 1 . . . . . . . . . . . . . . . . . . . . . . . . . S7 Guard 3 | . . . . . . . . . . . . . . . . . . . . . . . . . . . . . . . . . . . . 3 . Tracker 5 | . . . . . . . . . . . . . . . . . . . . . . . . . . . . . . . . . . . . 3 2 Combat Programmer 1 | . . . . . . . . . . . . . . . . . . . . . . . . . . . . . . . . . . . . 1 . Executioner 2 | . . . . . . . . . . . . . . . . . . . . . . . . . . . . . . . . . . . . 2 . Decomposer 3 | . . . . . . . 1 . . . . . . . . . . . . . . . . . . . . 2 . . . . . . . . . Packrat 2 | . . . . . . . . . . . . . . . . . . . . . . . . . . . . . . . 2 . . . . . . Samaritan 1 | . . . . . . . 1 . . . . . . . . . . . . . . . . . . . . . . . . . . . . . . Best Kill Streak 10 | 3 1 6 7 2 . 2 . . . . 1 1 2 5 . . 1 1 . 2 4 5 . . 1 . 5 7 . 3 . 3 2 3 1 10 2 Combat Bots Only 8 | . 1 4 5 . . . . . . . 1 1 . 5 . . 1 . . . 4 5 . . . . 3 7 . 3 . 2 2 1 1 8 2 Max Kills in Single Turn 7 | 1 1 2 2 1 . 1 1 . . . 1 1 1 2 . . 1 1 . 1 1 3 . . 1 . 4 4 . 3 1 1 1 1 1 7 1 Gunslinging 1 | . . . 1 . . . . . . . . . . . . . . . . . . . . . . . . . . . . . . . . . . Exploded 5 | . . 2 . . . . . . . . . . . 2 . . . . . . 1 3 . . . . 3 4 . 3 . . . . . 5 . Melee 1 | . . . . . . . . . . . . . . . . . . . . . . . . . . . 1 1 . . . 1 . 1 1 1 . Uniques/NPCs Destroyed . | . . . . . . . . . . . . . . . . . . . . . . . . . . . . . . . . . . . . . . Combat | -11 -10 -9 -8 -7 -7 -7 -7 -7 -7 -6 -6 -6 -6 -6 -6 -6 -5 -5 -5 -5 -5 -5 -5 -4 -4 -4 -4 -4 -4 -4 -3 -3 -3 -2 -2 -2 -1 -------- Run | Scr Mat Mat Mat Fac Was Fac Low Low Zio Pro Fac Was Fac Low Low Dat Pro Fac Was Fac Upp Upp Zhi Pro Fac Was Fac Upp Upp War Pro Res Qua Res Tes Sec Acc Damage Taken 17855 | . 76 1262 2162 15 . . 43 . . 16 90 . 636 146 . . . 98 . . . . . . 53 . 775 132 . . . 562 140 160 244 6653 4592 Core 2894 | . 35 310 298 . . . . . . . . . 37 . . . . . . . . . . . . . 202 45 . . . 49 49 20 . 246 1603 Absorbed by Shields 831 | . . . . . . . . . . . . . . . . . . . . . . . . . . . . . . . . . 81 . . 750 . Core Remaining (%) 78 | 100 86 22 45 . . . . . . 100 . . . . . . 95 . . . . . . 100 . . . . . . 78 . 92 . . 69 . Volleys Fired 650 | 14 6 95 219 10 . 3 5 . . . 13 21 4 34 . . 6 . . . 5 3 . . . . 3 19 . 1 . . 8 . . 135 46 Largest 2 | 2 2 2 2 1 . 1 1 . . . 1 1 1 1 . . 1 . . . 1 1 . . . . 1 1 . 1 . . 1 . . 1 1 Hottest 225 | 60 60 80 68 30 . 225 30 . . . 90 225 225 50 . . 50 . . . 46 46 . . . . 80 88 . 80 . . 94 . . 120 70 Shots Fired 913 | 28 12 135 426 10 . 3 5 . . . 13 21 4 33 . . 6 . . . 5 3 . . . . 3 19 . 1 . . 8 . . 132 46 Gun 662 | 28 12 124 426 . . 3 . . . . . 21 4 . . . . . . . . . . . . . . . . . . . . . . 9 35 Cannon 154 | . . . . . . . . . . . 9 . . . . . . . . . . . . . . . . 4 . . . . 8 . . 122 11 Launcher 78 | . . 11 . . . . . . . . . . . 33 . . 6 . . . 5 3 . . . . 3 15 . 1 . . . . . 1 . Special 19 | . . . . 10 . . 5 . . . 4 . . . . . . . . . . . . . . . . . . . . . . . . . . Kinetic 517 | 14 6 54 408 . . . . . . . . . . . . . . . . . . . . . . . . . . . . . . . . . 35 Thermal 114 | 14 6 40 . . . 3 . . . . 4 21 4 . . . . . . . . . . . . . . . . . . . . . . 22 . Explosive 38 | . . 11 . . . . . . . . . . . . . . . . . . 5 3 . . . . 3 15 . 1 . . . . . . . Electromagnetic 216 | . . 30 18 . . . . . . . 5 . . 33 . . 6 . . . . . . . . . . 4 . . . . 8 . . 101 11 Slashing 9 | . . . . . . . . . . . . . . . . . . . . . . . . . . . . . . . . . . . . 9 . Robot Hit Streak 20 | 5 7 19 14 4 . 2 7 . . . 6 12 . 4 . . . . . . . . . . . . 6 3 . . . . 6 . . 11 20 Robot Miss Streak 5 | 2 1 3 4 3 . 1 . . . . 2 3 1 . . . . . . . . . . . . . . 1 . . . . 2 . . 5 3 Penetration Max 1 | . . . . . . . . . . . . . . . . . . . . . . . . . . . . . . . . . . . . 1 1 Secondary Targets 6 | . . 3 3 . . . . . . . . . . . . . . . . . . . . . . . . . . . . . . . . . . Max Gunslinging Chain 1 | . . 1 1 . . . . . . . . . . . . . . . . . . . . . . . . . . . . . . . . . . Capacitor 11 | . . . . . . . . . . . . . . . . . . . . . . . . . . . . . . . . . . . . . 11 Shots Hit Robots 801 | 15 10 93 288 20 . 17 8 . . . 43 15 21 9 . . . 19 . 11 . . 3 . 11 . 27 8 . 12 2 21 6 8 7 90 37 Core Hits 426 | 7 3 46 111 6 . 9 1 . . . 14 2 11 29 . . 2 6 . 8 12 6 1 . 2 . 20 25 . 4 2 14 2 6 4 53 20 Critical Hits 27 | . . 1 3 . . 1 . . . . 1 . 1 . . . . . . 1 . . 1 . 1 . . . . . . 3 . 1 2 8 3 Critical Kills 12 | . . . 1 . . 1 . . . . . . . . . . . . . . . . . . . . . . . . . 2 . 1 1 5 1 Critical Parts Destroyed 13 | . . 1 2 . . . . . . . . . 1 . . . . . . 1 . . 1 . 1 . . . . . . 1 . . 1 3 1 Melee Attacks 1133 | . . . 3 55 . 66 12 5 . 13 134 . 119 9 7 . 3 130 . 87 6 23 3 20 38 . 101 15 16 15 10 87 39 24 26 67 . Impact . | . . . . . . . . . . . . . . . . . . . . . . . . . . . . . . . . . . . . . . Slashing 663 | . . . 3 55 . 66 12 5 . 13 132 . 118 4 7 . 3 112 . . . . . . . . . . . . . . 16 24 26 67 . Piercing 447 | . . . . . . . . . . . . . . . . . . 18 . 87 6 23 3 20 35 . 101 15 16 3 10 87 23 . . . . Sneak Attacks 92 | . . . . 7 . 7 3 . . . 9 . 6 5 . . . 5 . 6 . . . . 7 . 9 2 . 12 2 4 . 3 1 4 . Combat Hostiles 1 | . . . . . . . . . . . . . . . . . . . . . . . . . . . . 1 . . . . . . . . . Follow-up Attacks . | . . . . . . . . . . . . . . . . . . . . . . . . . . . . . . . . . . . . . . Damage Inflicted 42986 | 159 99 1899 4759 916 . 1034 277 . . . 2015 420 1383 1240 . . 144 1152 . 1151 1094 456 382 . 590 . 2640 2630 . 347 238 1262 258 1217 704 13218 1302 Guns 7717 | 159 99 1198 4687 . . 68 . . . . . 420 . . . . . . . . . . . . . . . . . . . . . . . 185 901 Cannons 3570 | . . . . . . . . . . . 228 . . . . . . . . . . . . . . . . 117 . . . . 258 . . 2566 401 Explosions 14459 | . . 701 72 . . . . . . . . . . 1240 . . 144 . . . 1094 456 . . . . 645 1819 . 347 . . . . . 7941 . Melee 17240 | . . . . 916 . 966 277 . . . 1787 . 1383 . . . . 1152 . 1151 . . 382 . 590 . 1995 694 . . 238 1262 . 1217 704 2526 . Ramming . | . . . . . . . . . . . . . . . . . . . . . . . . . . . . . . . . . . . . . . Kinetic 6041 | 40 55 572 4473 . . . . . . . . . . . . . . . . . . . . . . . . . . . . . . . . . 901 Thermal 9169 | 119 44 477 . . . 68 . . . . 100 420 . . . . . . . . . . . . . . . . . . . . . . . 7941 . Explosive 4970 | . . 537 72 . . . . . . . . . . . . . . . . . 1094 456 . . . . 645 1819 . 347 . . . . . . . Electromagnetic 5381 | . . 313 214 . . . . . . . 128 . . 1240 . . 144 . . . . . . . . . . 117 . . . . 258 . . 2566 401 Impact . | . . . . . . . . . . . . . . . . . . . . . . . . . . . . . . . . . . . . . . Slashing 10879 | . . . . 916 . 966 277 . . . 1787 . 1383 . . . . 918 . . . . . . . . . . . . . . . 1217 704 2711 . Piercing 6546 | . . . . . . . . . . . . . . . . . . 234 . 1151 . . 382 . 590 . 1995 694 . . 238 1262 . . . . . Highest Corruption 8 | . . . . . . 2 2 2 2 . 3 3 7 7 . . . . 8 8 . . . . . . 4 . . 2 . 5 3 1 2 2 . Average Corruption 3 | . . . . . . 2 2 2 2 . 2 2 5 5 . . . . 8 5 . . . . . . 2 . . 1 . 3 2 1 1 2 . Corruption Purged 28 | . . . . . . . . . . . . 3 . 7 . . . . . 8 . . . . . . 4 . . . . 6 . . . . . Effects 209 | . . . . . . 12 2 5 2 . 16 4 36 40 . . . . 1 56 . . . . . . 6 . . . . 5 6 2 3 13 . Message Errors 62 | . . . . . . 8 1 3 1 . 7 2 5 13 . . . . . 16 . . . . . . . . . . . 1 2 1 1 1 . Matter Fused 36 | . . . . . . . . . . . 2 1 8 7 . . . . . 14 . . . . . . 1 . . . . 2 1 . . . . Heat Flow Errors 23 | . . . . . . 2 1 1 1 . 1 . 6 2 . . . . . 5 . . . . . . 1 . . . . . 1 . . 2 . Energy Discharges 24 | . . . . . . 1 . . . . 2 1 2 6 . . . . 1 6 . . . . . . 1 . . . . 1 . . 1 2 . Parts Rejected 2 | . . . . . . . . . . . . . 1 . . . . . . 1 . . . . . . . . . . . . . . . . . Data Loss (minor) 25 | . . . . . . . . . . . 2 . 6 4 . . . . . 5 . . . . . . 1 . . . . 1 1 1 . 4 . Data Loss (major) 6 | . . . . . . . . . . . . . 1 4 . . . . . 1 . . . . . . . . . . . . . . . . . Targeting Errors 29 | . . . . . . 1 . 1 . . 2 . 7 3 . . . . . 8 . . . . . . 2 . . . . . 1 . 1 3 . Weapon Failures 2 | . . . . . . . . . . . . . . 1 . . . . . . . . . . . . . . . . . . . . . 1 . Overload Shots 57 | . . . . . . 3 . . . . . 1 4 . . . . . . . . . . . . . . . . . . . . . . 49 . Effects 5 | . . . . . . . . . . . . . . . . . . . . . . . . . . . . . . . . . . . . 5 . Energy Bleed 4 | . . . . . . . . . . . . . . . . . . . . . . . . . . . . . . . . . . . . 4 . Heat Surge 1 | . . . . . . . . . . . . . . . . . . . . . . . . . . . . . . . . . . . . 1 . Overflow Damage 4355 | . . 47 22 115 . 317 174 . . . 127 . 138 1 . . . 228 . . 34 24 . . 22 . 557 282 . . . 14 . 136 89 1997 31 Projectiles 79 | . . . . . . . . . . . . . . . . . . . . . . . . . . . . 33 . . . . . . . 15 31 Explosions 2005 | . . 47 22 . . . . . . . . . . 1 . . . . . . 34 24 . . . . 209 105 . . . . . . . 1563 . Melee 2271 | . . . . 115 . 317 174 . . . 127 . 138 . . . . 228 . . . . . . 22 . 348 144 . . . 14 . 136 89 419 . Knockbacks . | . . . . . . . . . . . . . . . . . . . . . . . . . . . . . . . . . . . . . . Impact . | . . . . . . . . . . . . . . . . . . . . . . . . . . . . . . . . . . . . . . Kinetic . | . . . . . . . . . . . . . . . . . . . . . . . . . . . . . . . . . . . . . . Secondary . | . . . . . . . . . . . . . . . . . . . . . . . . . . . . . . . . . . . . . . Self-Inflicted Damage 1343 | . . 156 78 . . . . . . . . . . . . . . . . . . . . . . . 136 . . . . . . . . 973 . Shots 12 | . . 6 1 . . . . . . . . . . . . . . . . . . . . . . . 2 . . . . . . . . 3 . Rammed . | . . . . . . . . . . . . . . . . . . . . . . . . . . . . . . . . . . . . . . Targets Rammed . | . . . . . . . . . . . . . . . . . . . . . . . . . . . . . . . . . . . . . . Kicked . | . . . . . . . . . . . . . . . . . . . . . . . . . . . . . . . . . . . . . . Crushed . | . . . . . . . . . . . . . . . . . . . . . . . . . . . . . . . . . . . . . . Highest Temperature 380 | . 36 77 365 30 2 380 252 146 231 . 234 250 375 190 . . 64 . 6 214 10 6 . . . . 104 54 . . . . 60 . . 108 . Average Temperature 76 | . 19 21 97 3 2 143 92 74 120 . 72 108 107 38 . . 38 . 6 82 5 3 . . . . 15 16 . . . . 60 . . 36 . Received Heat Transfer 1717 | . 42 438 828 9 . . 27 . . . . . 6 . . . . 18 . . . . . . . . 27 18 . . . 93 . 18 . 193 . Effects 10 | . . . 7 . . . . . 2 . . . 1 . . . . . . . . . . . . . . . . . . . . . . . . Shutdowns 2 | . . . 1 . . . . . . . . . 1 . . . . . . . . . . . . . . . . . . . . . . . . Energy Bleed 2 | . . . 2 . . . . . . . . . . . . . . . . . . . . . . . . . . . . . . . . . . Interference 5 | . . . 3 . . . . . 2 . . . . . . . . . . . . . . . . . . . . . . . . . . . . Matter Decay 1 | . . . 1 . . . . . . . . . . . . . . . . . . . . . . . . . . . . . . . . . . Siege Activations . | . . . . . . . . . . . . . . . . . . . . . . . . . . . . . . . . . . . . . . Robots Corrupted 22 | . . . . . . . . . . . 1 . . 5 . . 1 . . . . . . . . . . . . . . . 2 . . 11 2 Combat Hostiles 21 | . . . . . . . . . . . . . . 5 . . 1 . . . . . . . . . . . . . . . 2 . . 11 2 Parts Fried 39 | . . 1 . . . . . . . . 3 . . 15 . . 1 . . . . . . . . . . . . . . . 4 . . 15 . Impact Corruptions . | . . . . . . . . . . . . . . . . . . . . . . . . . . . . . . . . . . . . . . Robots Melted . | . . . . . . . . . . . . . . . . . . . . . . . . . . . . . . . . . . . . . . Combat Hostiles . | . . . . . . . . . . . . . . . . . . . . . . . . . . . . . . . . . . . . . . Parts Melted 3 | . . . . . . . . . . . . . . . . . . . . . . . . . . . . . . . . . . . . 3 . Heat Transferred 2506 | 275 100 968 . . . 100 . . . . 111 642 . . . . . . . . . . . . . . . . . . . . . . . 310 . Parts Sabotaged . | . . . . . . . . . . . . . . . . . . . . . . . . . . . . . . . . . . . . . . Parts Stolen . | . . . . . . . . . . . . . . . . . . . . . . . . . . . . . . . . . . . . . . Parts Stripped . | . . . . . . . . . . . . . . . . . . . . . . . . . . . . . . . . . . . . . . Power Chain Reactions 7 | . . 3 . . . . . . . . . . . 1 . . . 1 . . . . . . . . . . . . . . . . . 2 . Missiles Intercepted . | . . . . . . . . . . . . . . . . . . . . . . . . . . . . . . . . . . . . . . Alert | -11 -10 -9 -8 -7 -7 -7 -7 -7 -7 -6 -6 -6 -6 -6 -6 -6 -5 -5 -5 -5 -5 -5 -5 -4 -4 -4 -4 -4 -4 -4 -3 -3 -3 -2 -2 -2 -1 ------- Run | Scr Mat Mat Mat Fac Was Fac Low Low Zio Pro Fac Was Fac Low Low Dat Pro Fac Was Fac Upp Upp Zhi Pro Fac Was Fac Upp Upp War Pro Res Qua Res Tes Sec Acc Peak Influence 1365 | 30 49 377 675 388 68 193 . . . . 524 25 442 . . . . 511 189 654 . . . . 110 108 589 . . . . 160 186 227 242 1365 952 Average Influence 249 | 11 29 225 428 266 58 44 . . . . 212 20 100 . . . . 218 168 340 . . . . 30 37 203 . . . . 51 80 144 148 635 885 Maximum Alert Level 4 | . . 1 2 1 . . . . . . 2 . 2 . . . . 2 . 2 . . . . . . 2 . . . . . . 1 1 4 3 Low Security (%) 52 | 100 100 44 2 8 100 100 . . . . 56 100 76 . . . . 55 100 12 . . . . 100 100 47 . . . . 100 100 85 84 39 . Level 1 24 | . . 55 45 91 . . . . . . 8 . 18 . . . . 5 . 51 . . . . . . 44 . . . . . . 14 15 16 . Level 2 16 | . . . 52 . . . . . . . 35 . 5 . . . . 39 . 36 . . . . . . 8 . . . . . . . . . . Level 3 1 | . . . . . . . . . . . . . . . . . . . . . . . . . . . . . . . . . . . . . 100 Level 4 3 | . . . . . . . . . . . . . . . . . . . . . . . . . . . . . . . . . . . . 44 . Level 5 . | . . . . . . . . . . . . . . . . . . . . . . . . . . . . . . . . . . . . . . High Security . | . . . . . . . . . . . . . . . . . . . . . . . . . . . . . . . . . . . . . . Max Security . | . . . . . . . . . . . . . . . . . . . . . . . . . . . . . . . . . . . . . . Squads Dispatched 70 | . . 5 4 3 . 2 . . . . 7 . 4 . . . . 4 . 6 . . . . 2 . 3 . . . . 1 1 2 3 17 6 Investigation 12 | . . 1 1 . . 1 . . . . 2 . 1 . . . . 1 . . . . . . . . . . . . . . . 1 1 2 1 Extermination 16 | . . . . 1 . 1 . . . . 2 . 2 . . . . 1 . 2 . . . . . . 1 . . . . 1 . . 1 3 1 Reinforcement 28 | . . 4 3 2 . . . . . . 3 . . . . . . 2 . 3 . . . . 1 . 2 . . . . . 1 1 1 4 1 Assault 4 | . . . . . . . . . . . . . 1 . . . . . . 1 . . . . . . . . . . . . . . . 2 . Garrison 1 | . . . . . . . . . . . . . . . . . . . . . . . . . 1 . . . . . . . . . . . . Intercept 9 | . . . . . . . . . . . . . . . . . . . . . . . . . . . . . . . . . . . . 6 3 Construction Impeded 1 | . . . . . . . . . . . . . . . . . . . . . . . . . . . . . . . . . . . . . 1 Haulers Reinforced 9 | . . . . 2 . . . . . . 2 . . . . . . . . 1 . . . . 1 . 1 . . . . . . 1 . 1 . Stealth | -11 -10 -9 -8 -7 -7 -7 -7 -7 -7 -6 -6 -6 -6 -6 -6 -6 -5 -5 -5 -5 -5 -5 -5 -4 -4 -4 -4 -4 -4 -4 -3 -3 -3 -2 -2 -2 -1 --------- Run | Scr Mat Mat Mat Fac Was Fac Low Low Zio Pro Fac Was Fac Low Low Dat Pro Fac Was Fac Upp Upp Zhi Pro Fac Was Fac Upp Upp War Pro Res Qua Res Tes Sec Acc Distress Signals 26 | . . 1 7 . . . . . . . 1 . . . . . . . . . . . . . 1 . 1 . . . . 2 . 3 3 4 3 Communications Jammed . | . . . . . . . . . . . . . . . . . . . . . . . . . . . . . . . . . . . . . . Distress Signals . | . . . . . . . . . . . . . . . . . . . . . . . . . . . . . . . . . . . . . . Times Spotted 397 | . 3 33 66 9 3 10 8 . . . 12 1 14 20 . . . 11 3 11 . . . . 8 6 22 5 . 4 . 19 5 9 4 84 27 Peak Tracking Total 17 | . 2 6 5 8 4 4 5 . . . 4 1 2 9 . . 1 7 3 2 4 4 . . 3 6 5 4 . 2 . 6 3 3 6 15 17 Tactical Retreats 62 | . 1 2 3 1 . 1 1 . . . 3 . 1 12 . . 1 2 . 1 1 . . . 1 1 5 3 . . . 7 1 1 1 9 3 Traps | -11 -10 -9 -8 -7 -7 -7 -7 -7 -7 -6 -6 -6 -6 -6 -6 -6 -5 -5 -5 -5 -5 -5 -5 -4 -4 -4 -4 -4 -4 -4 -3 -3 -3 -2 -2 -2 -1 ------- Run | Scr Mat Mat Mat Fac Was Fac Low Low Zio Pro Fac Was Fac Low Low Dat Pro Fac Was Fac Upp Upp Zhi Pro Fac Was Fac Upp Upp War Pro Res Qua Res Tes Sec Acc Traps Triggered 30 | . . . 1 3 . 1 . . . . 6 . 4 . . . . 1 . . . . . . 3 . 5 . . . . 2 2 . . 1 1 Indirectly . | . . . . . . . . . . . . . . . . . . . . . . . . . . . . . . . . . . . . . . Trap Hack Attempts . | . . . . . . . . . . . . . . . . . . . . . . . . . . . . . . . . . . . . . . Triggered . | . . . . . . . . . . . . . . . . . . . . . . . . . . . . . . . . . . . . . . Disarmed . | . . . . . . . . . . . . . . . . . . . . . . . . . . . . . . . . . . . . . . Reprogrammed . | . . . . . . . . . . . . . . . . . . . . . . . . . . . . . . . . . . . . . . Reused . | . . . . . . . . . . . . . . . . . . . . . . . . . . . . . . . . . . . . . . Traps Extracted . | . . . . . . . . . . . . . . . . . . . . . . . . . . . . . . . . . . . . . . Installed . | . . . . . . . . . . . . . . . . . . . . . . . . . . . . . . . . . . . . . . Triggered 14 | . . . . . . . . . . . . . . 1 . . . . . . 2 . . . . . . 6 . 5 . . . . . . . Machines | -11 -10 -9 -8 -7 -7 -7 -7 -7 -7 -6 -6 -6 -6 -6 -6 -6 -5 -5 -5 -5 -5 -5 -5 -4 -4 -4 -4 -4 -4 -4 -3 -3 -3 -2 -2 -2 -1 ---------- Run | Scr Mat Mat Mat Fac Was Fac Low Low Zio Pro Fac Was Fac Low Low Dat Pro Fac Was Fac Upp Upp Zhi Pro Fac Was Fac Upp Upp War Pro Res Qua Res Tes Sec Acc Machines Disabled 41 | . . 2 1 . . . . . . . 1 . . . . . . . . 1 . . . . . . . . 1 . . . 3 1 2 29 . Max in Single Turn 16 | . . 1 1 . . . . . . . 1 . . . . . . . . 1 . . . . . . . . 1 . . . 1 1 1 16 . Garrison Access 24 | . . . 1 2 . 2 . . . . 2 . 2 . . . . 3 . 2 . . . . 2 . 2 . . . . 2 . 3 1 . . Machines Sabotaged . | . . . . . . . . . . . . . . . . . . . . . . . . . . . . . . . . . . . . . . Garrisons Compromised . | . . . . . . . . . . . . . . . . . . . . . . . . . . . . . . . . . . . . . . Overloaded Fab Kills . | . . . . . . . . . . . . . . . . . . . . . . . . . . . . . . . . . . . . . . Fab Network Shutdowns 5 | . . . . . . . . . . . 1 . 1 . . . . 1 . 1 . . . . . . 1 . . . . . . . . . . Hacking | -11 -10 -9 -8 -7 -7 -7 -7 -7 -7 -6 -6 -6 -6 -6 -6 -6 -5 -5 -5 -5 -5 -5 -5 -4 -4 -4 -4 -4 -4 -4 -3 -3 -3 -2 -2 -2 -1 --------- Run | Scr Mat Mat Mat Fac Was Fac Low Low Zio Pro Fac Was Fac Low Low Dat Pro Fac Was Fac Upp Upp Zhi Pro Fac Was Fac Upp Upp War Pro Res Qua Res Tes Sec Acc Machines Accessed 228 | . . 6 10 13 . 19 . . . . 26 . 22 1 . 4 . 20 . 17 . . 4 . 8 . 21 . 1 9 . 10 12 5 8 8 4 Terminals 133 | . . 6 9 7 . 12 . . . . 18 . 14 . . . . 11 . 11 . . . . 4 . 13 . . . . 6 9 . 4 6 3 Fabricators 22 | . . . . 3 . 1 . . . . 3 . 2 . . . . 3 . 2 . . . . . . 3 . . . . 2 . 1 2 . . Repair Stations 17 | . . . . . . 2 . . . . 2 . 3 . . . . 2 . 2 . . . . 1 . 3 . . . . . 1 . . 1 . Recycling Units . | . . . . . . . . . . . . . . . . . . . . . . . . . . . . . . . . . . . . . . Scanalyzers 11 | . . . . 1 . 2 . . . . 1 . 1 . . . . 1 . . . . . . 1 . . . . . . . 2 . 1 1 . Garrison Access 26 | . . . 1 2 . 2 . . . . 2 . 2 . . . . 3 . 2 . . . . 2 . 2 . . . . 2 . 4 1 . 1 Total Hacks 652 | . . 14 24 44 . 68 . . . . 77 . 70 1 . 28 . 46 . 42 . . 17 . 20 . 61 . 1 21 . 21 33 12 28 18 6 Successful 484 | . . 6 11 28 . 44 . . . . 62 . 60 1 . 28 . 37 . 33 . . 17 . 19 . 50 . 1 21 . 13 17 5 21 9 1 Failed 168 | . . 8 13 16 . 24 . . . . 15 . 10 . . . . 9 . 9 . . . . 1 . 11 . . . . 8 16 7 7 9 5 Catastrophic 13 | . . 1 5 1 . 2 . . . . 1 . . . . . . . . . . . . . . . . . . . . . 1 1 . . 1 Database Lockouts . | . . . . . . . . . . . . . . . . . . . . . . . . . . . . . . . . . . . . . . Manual 242 | . . 9 8 15 . 32 . . . . 42 . 27 . . . . 18 . 17 . . . . 5 . 19 . . 1 . 5 21 3 17 3 . Terminals 394 | . . 14 22 24 . 49 . . . . 56 . 44 . . . . 26 . 27 . . . . 15 . 42 . . . . 14 28 . 16 12 5 Fabricators 82 | . . . . 15 . 8 . . . . 9 . 7 . . . . 8 . 8 . . . . . . 9 . . . . 4 . 5 9 . . Repair Stations 47 | . . . . . . 6 . . . . 4 . 14 . . . . 4 . 4 . . . . 2 . 8 . . . . . 2 . . 3 . Recycling Units . | . . . . . . . . . . . . . . . . . . . . . . . . . . . . . . . . . . . . . . Scanalyzers 24 | . . . . 2 . 3 . . . . 5 . 3 . . . . 2 . . . . . . 1 . . . . . . . 3 . 2 3 . Garrison Access 37 | . . . 2 3 . 2 . . . . 3 . 2 . . . . 6 . 3 . . . . 2 . 2 . . . . 3 . 7 1 . 1 Terminal Hacks 246 | . . 4 9 11 . 18 . . . . 29 . 24 1 . 28 . 12 . 14 . . 17 . 9 . 25 . 1 21 . 6 7 . 6 3 1 Record 31 | . . . . . . . . . . . . . . . . 11 . . . . . . 5 . . . . . . 15 . . . . . . . Part Schematic 30 | . . . . 1 . 1 . . . . 2 . 2 . . 9 . 2 . 1 . . 4 . 1 . 5 . . . . 1 1 . . . . Robot Schematic 5 | . . . . . . . . . . . . . . . . 5 . . . . . . . . . . . . . . . . . . . . . Robot Analysis 4 | . . . . . . . . . . . . . . . . . . . . . . . 4 . . . . . . . . . . . . . . Prototype ID Bank 33 | . . 1 . 3 . 3 . . . . 6 . 1 . . 3 . 3 . 1 . . 4 . 2 . 2 . . 4 . . . . . . . Open Door 6 | . . . . . . . . . . . . . . 1 . . . . . . . . . . . . . . 1 2 . . . . . 2 . Branch Access Points 6 | . . . . . . 1 . . . . . . 1 . . . . . . 1 . . . . . . 1 . . . . 1 . . 1 . . Machine Index 3 | . . . . . . . . . . . 1 . . . . . . . . 1 . . . . . . 1 . . . . . . . . . . Terminal Index 9 | . . . 1 1 . 1 . . . . 1 . 1 . . . . . . . . . . . 1 . 1 . . . . 1 . . 1 . . Fabricator Index 7 | . . . . 1 . . . . . . 1 . 1 . . . . . . . . . . . 1 . 2 . . . . . . . 1 . . Repair Station Index 2 | . . . . . . . . . . . . . 1 . . . . . . . . . . . . . 1 . . . . . . . . . . Scanalyzer Index 1 | . . . . . . . . . . . . . 1 . . . . . . . . . . . . . . . . . . . . . . . . Garrison Index 1 | . . . . . . . . . . . . . 1 . . . . . . . . . . . . . . . . . . . . . . . . Alert Level 4 | . . . 1 . . . . . . . 1 . 1 . . . . . . . . . . . . . 1 . . . . . . . . . . Unreport Threat 15 | . . . 2 . . 2 . . . . 2 . 3 . . . . 2 . . . . . . . . 2 . . . . 2 . . . . . Locate Traps 40 | . . . 3 4 . 4 . . . . 7 . 4 . . . . . . 5 . . . . 1 . 4 . . . . 1 4 . 1 1 1 Recall Investigation 3 | . . . . . . . . . . . 1 . . . . . . 2 . . . . . . . . . . . . . . . . . . . Recall Extermination 8 | . . . . 1 . 1 . . . . 2 . 2 . . . . . . 2 . . . . . . . . . . . . . . . . . Recall Reinforcements 1 | . . 1 . . . . . . . . . . . . . . . . . . . . . . . . . . . . . . . . . . . Recall Assault 2 | . . . . . . . . . . . . . 1 . . . . . . 1 . . . . . . . . . . . . . . . . . Hauler Manifests 6 | . . . . . . 1 . . . . 1 . 1 . . . . 1 . 1 . . . . . . 1 . . . . . . . . . . Registered Prototypes 1 | . . . . . . . . . . . . . . . . . . . . . . . . . 1 . . . . . . . . . . . . Zone Layout 28 | . . 2 2 . . 4 . . . . 4 . 3 . . . . 2 . 1 . . . . 2 . 4 . . . . . 2 . 2 . . Fabricator Hacks 45 | . . . . 7 . 5 . . . . 7 . 4 . . . . 3 . 4 . . . . . . 5 . . . . 4 . 2 4 . . Network Status 2 | . . . . . . 1 . . . . 1 . . . . . . . . . . . . . . . . . . . . . . . . . . Load Schematic 21 | . . . . 3 . 2 . . . . 2 . 2 . . . . 2 . 2 . . . . . . 3 . . . . 2 . 1 2 . . Build 22 | . . . . 4 . 2 . . . . 4 . 2 . . . . 1 . 2 . . . . . . 2 . . . . 2 . 1 2 . . Repair Station Hacks 41 | . . . . . . 4 . . . . 4 . 13 . . . . 4 . 2 . . . . 2 . 8 . . . . . 2 . . 2 . Scan Component 21 | . . . . . . 2 . . . . 2 . 7 . . . . 2 . 1 . . . . 1 . 4 . . . . . 1 . . 1 . Repair 20 | . . . . . . 2 . . . . 2 . 6 . . . . 2 . 1 . . . . 1 . 4 . . . . . 1 . . 1 . Recycling Unit Hacks . | . . . . . . . . . . . . . . . . . . . . . . . . . . . . . . . . . . . . . . Scanalyzer 21 | . . . . 2 . 2 . . . . 5 . 3 . . . . 1 . . . . . . 1 . . . . . . . 2 . 2 3 . Insert Component 16 | . . . . 1 . 2 . . . . 2 . 2 . . . . 1 . . . . . . 1 . . . . . . . 2 . 2 3 . Analyze 5 | . . . . 1 . . . . . . 3 . 1 . . . . . . . . . . . . . . . . . . . . . . . . Garrison Access Hacks 23 | . . . 1 2 . 2 . . . . 2 . 2 . . . . 3 . 2 . . . . 2 . 2 . . . . 2 . 2 1 . . Seal Access 23 | . . . 1 2 . 2 . . . . 2 . 2 . . . . 3 . 2 . . . . 2 . 2 . . . . 2 . 2 1 . . Unauthorized Hacks 245 | . . 6 2 15 . 34 . . . . 34 . 30 . . . . 28 . 22 . . . . 10 . 21 . . . . 2 17 4 18 2 . Terminals 90 | . . 2 1 3 . 11 . . . . 15 . 12 . . . . 11 . 10 . . . . 5 . 8 . . . . 1 6 . 4 1 . Track 29 | . . . . 1 . 2 . . . . 5 . 4 . . . . 4 . 4 . . . . 2 . 3 . . . . . 1 . 2 1 . Assimilate 27 | . . 1 . . . 4 . . . . 3 . 4 . . . . 3 . 4 . . . . 1 . 2 . . . . 1 3 . 1 . . Botnet 29 | . . 1 1 2 . 5 . . . . 4 . 4 . . . . 4 . 2 . . . . 2 . 2 . . . . . 1 . 1 . . Disrupt 5 | . . . . . . . . . . . 3 . . . . . . . . . . . . . . . 1 . . . . . 1 . . . . Fabricators 18 | . . . . 3 . 2 . . . . . . 2 . . . . 3 . 1 . . . . . . 2 . . . . . . 1 4 . . Prioritize 9 | . . . . 2 . 1 . . . . . . 1 . . . . 1 . . . . . . . . 1 . . . . . . 1 2 . . Siphon 8 | . . . . 1 . 1 . . . . . . 1 . . . . 1 . 1 . . . . . . 1 . . . . . . . 2 . . Overload 1 | . . . . . . . . . . . . . . . . . . 1 . . . . . . . . . . . . . . . . . . . Repair Stations . | . . . . . . . . . . . . . . . . . . . . . . . . . . . . . . . . . . . . . . Recycling Units . | . . . . . . . . . . . . . . . . . . . . . . . . . . . . . . . . . . . . . . Scanalyzers . | . . . . . . . . . . . . . . . . . . . . . . . . . . . . . . . . . . . . . . Garrison Access . | . . . . . . . . . . . . . . . . . . . . . . . . . . . . . . . . . . . . . . Data Cores Recovered 4 | . . . . . . 1 . . . . 1 . . . . . . . . . . . . . . . 1 . . . . 1 . . . . . Used 2 | . . . . . . 1 . . . . . . . . . . . . . . . . . . . . . . . . . 1 . . . . . Hacking Detections 150 | . . 4 7 11 . 14 . . . . 18 . 16 . . . . 16 . 11 . . . . 4 . 12 . . . . 8 10 3 4 8 4 Full Trace Events 6 | . . 1 . . . 1 . . . . . . 1 . . . . . . . . . . . . . . . . . . . . 1 . 1 1 Feedback Events 1 | . . . . . . . . . . . . . . . . . . . . . . . . . . . . . . . . . . 1 . . . Corruption 1 | . . . . . . . . . . . . . . . . . . . . . . . . . . . . . . . . . . 1 . . . Feedback Blocked . | . . . . . . . . . . . . . . . . . . . . . . . . . . . . . . . . . . . . . . Robot Schematics Acquired 5 | . . . . . . . . . . . . . . . . 5 . . . . . . . . . . . . . . . . . . . . . Robots Built . | . . . . . . . . . . . . . . . . . . . . . . . . . . . . . . . . . . . . . . Matter . | . . . . . . . . . . . . . . . . . . . . . . . . . . . . . . . . . . . . . . Time . | . . . . . . . . . . . . . . . . . . . . . . . . . . . . . . . . . . . . . . Total Robot Build Rating . | . . . . . . . . . . . . . . . . . . . . . . . . . . . . . . . . . . . . . . Part Schematics Acquired 34 | . . . . 2 . 1 . . . . 4 . 3 . . 9 . 2 . 1 . . 4 . 1 . 5 . . . . 1 1 . . . . Parts Built 23 | . . . . 4 . 2 . . . . 3 . 3 . . . . 1 . 2 . . . . . . 2 . . . . 2 . 1 3 . . Matter 5730 | . . . . 716 . 441 . . . . 855 . 468 . . . . 318 . 603 . . . . . . 669 . . . . 702 . 351 607 . . Time 1990 | . . . . 321 . 201 . . . . 228 . 117 . . . . 169 . 160 . . . . . . 356 . . . . 124 . 93 221 . . Total Part Build Rating 137 | . . . . 20 . 8 . . . . 15 . 20 . . . . 6 . 11 . . . . . . 13 . . . . 14 . 7 23 . . Parts Repaired 20 | . . . . . . 2 . . . . 2 . 6 . . . . 2 . 1 . . . . 1 . 4 . . . . . 1 . . 1 . Time 1004 | . . . . . . 56 . . . . 140 . 306 . . . . 138 . 26 . . . . 70 . 171 . . . . . 29 . . 68 . Parts Recycled . | . . . . . . . . . . . . . . . . . . . . . . . . . . . . . . . . . . . . . . Recycled Matter . | . . . . . . . . . . . . . . . . . . . . . . . . . . . . . . . . . . . . . . Retrieved Matter . | . . . . . . . . . . . . . . . . . . . . . . . . . . . . . . . . . . . . . . Retrieved Components . | . . . . . . . . . . . . . . . . . . . . . . . . . . . . . . . . . . . . . . Parts Scanalyzed 4 | . . . . 1 . . . . . . 2 . 1 . . . . . . . . . . . . . . . . . . . . . . . . Part Schematics Acquired 4 | . . . . 1 . . . . . . 2 . 1 . . . . . . . . . . . . . . . . . . . . . . . . Parts Damaged . | . . . . . . . . . . . . . . . . . . . . . . . . . . . . . . . . . . . . . . Bothacking | -11 -10 -9 -8 -7 -7 -7 -7 -7 -7 -6 -6 -6 -6 -6 -6 -6 -5 -5 -5 -5 -5 -5 -5 -4 -4 -4 -4 -4 -4 -4 -3 -3 -3 -2 -2 -2 -1 ------------ Run | Scr Mat Mat Mat Fac Was Fac Low Low Zio Pro Fac Was Fac Low Low Dat Pro Fac Was Fac Upp Upp Zhi Pro Fac Was Fac Upp Upp War Pro Res Qua Res Tes Sec Acc Used RIF Installer . | . . . . . . . . . . . . . . . . . . . . . . . . . . . . . . . . . . . . . . Robots Hacked 12 | . . . . 6 . . . . . . 4 . . . . . . . . . . . . . 2 . . . . . . . . . . . . Non-combat 12 | . . . . 6 . . . . . . 4 . . . . . . . . . . . . . 2 . . . . . . . . . . . . Combat . | . . . . . . . . . . . . . . . . . . . . . . . . . . . . . . . . . . . . . . Robot Hacks Applied 13 | . . . . 6 . . . . . . 4 . . . . . . . . . . . . . 3 . . . . . . . . . . . . no_distress 9 | . . . . 5 . . . . . . 2 . . . . . . . . . . . . . 2 . . . . . . . . . . . . find_chute 3 | . . . . 1 . . . . . . 2 . . . . . . . . . . . . . . . . . . . . . . . . . . find_fabricator 1 | . . . . . . . . . . . . . . . . . . . . . . . . . 1 . . . . . . . . . . . . Relay Couplers Released 1 | . . . . . . . . . . . . . . . . . . . . . . . . . . . . . . . . . . 1 . . . Machine Destruction 1 | . . . . . . . . . . . . . . . . . . . . . . . . . . . . . . . . . . 1 . . . Robots Rewired 8 | . . . . . . . 3 . . . . . . 2 . . . . . . . . . . . . . . . 3 . . . . . . . Allies Hacked 1 | . . . . . . . . . . . . . 1 . . . . . . . . . . . . . . . . . . . . . . . . Hacks Repelled . | . . . . . . . . . . . . . . . . . . . . . . . . . . . . . . . . . . . . . . Allies | -11 -10 -9 -8 -7 -7 -7 -7 -7 -7 -6 -6 -6 -6 -6 -6 -6 -5 -5 -5 -5 -5 -5 -5 -4 -4 -4 -4 -4 -4 -4 -3 -3 -3 -2 -2 -2 -1 -------- Run | Scr Mat Mat Mat Fac Was Fac Low Low Zio Pro Fac Was Fac Low Low Dat Pro Fac Was Fac Upp Upp Zhi Pro Fac Was Fac Upp Upp War Pro Res Qua Res Tes Sec Acc Total Allies 48 | . . . . . . 3 3 . 3 . 2 . 4 2 . . 1 1 . 3 . . . . 1 19 . . 2 3 . 1 . . . . . Largest Group 19 | . . . . . . 2 4 . 3 3 1 . 2 2 . . 1 1 . 2 1 1 . . 1 19 . . 2 3 1 1 . . . . . Highest-Rated Group 714 | . . . . . . 52 103 . 73 73 10 . 36 50 . . 94 10 . 26 26 26 . . 10 714 . . 75 155 60 26 . . . . . Highest-Rated Ally 94 | . . . . . . 26 31 . 31 31 10 . 26 30 . . 94 10 . 26 26 26 . . 10 50 . . 46 60 60 26 . . . . . Total Orders 2 | . . . . . . . . . . . . . . . . . . 1 . . . . . . . . 1 . . . . . . . . . . STAY 1 | . . . . . . . . . . . . . . . . . . 1 . . . . . . . . . . . . . . . . . . . GOTO 1 | . . . . . . . . . . . . . . . . . . . . . . . . . . . 1 . . . . . . . . . . Ally Attacks 122 | . . . . . . . 16 . . 7 . . . 4 . . 5 . . . . . . . . 87 . . . 3 . . . . . . . Total Damage 4302 | . . . . . . . 310 . . 109 . . . 101 . . 145 . . . . . . . . 3537 . . . 100 . . . . . . . Kills 13 | . . . . . . . 2 . . 1 . . . . . . 2 . . . . . . . . 8 . . . . . . . . . . . Allies Corrupted 2 | . . . . . . . . . . . . . 1 1 . . . . . . . . . . . . . . . . . . . . . . . Allies Melted . | . . . . . . . . . . . . . . . . . . . . . . . . . . . . . . . . . . . . . . Intel | -11 -10 -9 -8 -7 -7 -7 -7 -7 -7 -6 -6 -6 -6 -6 -6 -6 -5 -5 -5 -5 -5 -5 -5 -4 -4 -4 -4 -4 -4 -4 -3 -3 -3 -2 -2 -2 -1 ------- Run | Scr Mat Mat Mat Fac Was Fac Low Low Zio Pro Fac Was Fac Low Low Dat Pro Fac Was Fac Upp Upp Zhi Pro Fac Was Fac Upp Upp War Pro Res Qua Res Tes Sec Acc Robot Analysis Total 4 | . . . . . . . . . . . . . . . . . . . . . . . 4 . . . . . . . . . . . . . . Derelict Logs Recovered 15 | . . . . . . . 1 2 1 1 . . . 1 2 . 3 . . . 1 1 . 1 . . . . 1 . . . . . . . . Drone Launches 7 | . . . . . . . . . . . . . . . . . . 3 . . . . . . . . 4 . . . . . . . . . . Drone Recoveries . | . . . . . . . . . . . . . . . . . . . . . . . . . . . . . . . . . . . . . . Exploration | -11 -10 -9 -8 -7 -7 -7 -7 -7 -7 -6 -6 -6 -6 -6 -6 -6 -5 -5 -5 -5 -5 -5 -5 -4 -4 -4 -4 -4 -4 -4 -3 -3 -3 -2 -2 -2 -1 ------------- Run | Scr Mat Mat Mat Fac Was Fac Low Low Zio Pro Fac Was Fac Low Low Dat Pro Fac Was Fac Upp Upp Zhi Pro Fac Was Fac Upp Upp War Pro Res Qua Res Tes Sec Acc Turns Passed 26897 | 126 96 868 2273 829 35 1418 438 264 385 441 1840 481 1992 1631 311 26 223 1447 30 2473 341 332 77 360 662 161 1288 305 212 493 149 968 508 896 424 1742 352 Spaces Moved 40057 | 79 76 637 1491 1495 95 2550 831 661 923 586 3301 552 3709 1230 704 78 488 2497 86 2428 775 593 163 516 1235 310 2281 614 484 722 306 1702 788 2083 642 1819 527 Core 112 | 13 . 3 . . . . . . . . . . . . . . . . . . . . . . . . . . . . . . . . . 1 95 Treads . | . . . . . . . . . . . . . . . . . . . . . . . . . . . . . . . . . . . . . . Legs 21 | . . 3 18 . . . . . . . . . . . . . . . . . . . . . . . . . . . . . . . . . . Wheels 2246 | 66 76 631 1473 . . . . . . . . . . . . . . . . . . . . . . . . . . . . . . . . . . Hover 36094 | . . . . . 6 2550 831 661 923 586 3301 552 3709 1230 704 78 488 2497 86 2428 775 593 163 516 1235 310 2281 614 484 722 306 1702 788 2083 642 1818 432 Flight 1584 | . . . . 1495 89 . . . . . . . . . . . . . . . . . . . . . . . . . . . . . . . . Fastest Speed 22 | 50 90 80 80 29 29 26 26 38 38 38 38 38 33 26 33 33 33 30 31 36 36 36 36 36 30 30 30 31 31 31 33 35 35 35 36 22 32 Average Speed 39 | 82 90 87 94 30 29 37 37 38 38 38 38 38 34 58 33 33 33 30 34 36 36 36 36 36 35 34 33 31 31 32 33 35 35 35 37 41 49 Slowest Speed 2550 | 90 90 250 210 108 38 38 38 38 38 38 38 42 38 103 33 33 33 36 36 36 36 36 36 36 108 36 92 31 31 33 35 35 88 36 38 2550 500 Overloaded Moves 506 | . . . . . . 5 20 . . . . . . 34 . . . . 25 . . . . . . . . . . . . . . . . 299 123 Propulsion Burnouts 1 | . . . . . . . . . . . . . . . . . . . . . . . . . . . . . . . . . . . . . 1 Robots Hopped 4 | . . . . 4 . . . . . . . . . . . . . . . . . . . . . . . . . . . . . . . . . Cave-ins Triggered 1 | . . . . . . . . . . . . . 1 . . . . . . . . . . . . . . . . . . . . . . . . Teleports 2 | . . . . . . . . . . . . . . . . . . . . . . . . . . . . . . . . . . . . 2 . Exploration Rate (%) 64 | 4 20 59 96 44 69 54 80 83 84 67 71 89 54 92 86 68 70 66 78 51 78 69 60 65 39 87 59 63 70 94 47 38 70 59 61 77 16 Regions Visited 37 Branch Regions 19 Pre-discovered Areas 8 | . . . . . . . . . 2 1 . . . . . 1 . . . . . . 3 . . . . . . 1 . . . . . . . Known Exits Taken 25 | . . . . . . 1 1 1 1 1 . . 1 1 1 1 1 . . 1 1 1 1 1 . . 1 1 1 1 1 1 1 1 1 1 . Unknown Exits Taken 4 | 1 1 1 1 . . . . . . . . . . . . . . . . . . . . . . . . . . . . . . . . . . Scrap Searched 29 | . . . . . . . 2 2 3 . . . . 4 7 . 1 . . . 1 2 . 1 . . . 1 3 . 2 . . . . . . Spaces Dug 788 | . . 5 3 35 . 45 9 5 . 13 91 . 92 4 7 . 3 103 . 68 6 23 . 20 23 . 67 10 9 3 8 58 27 12 14 25 . Terrain Destroyed 1628 | . . 78 20 35 . 46 9 5 . 13 91 . 92 7 7 . 3 103 . 68 85 54 . 20 23 . 105 225 9 17 8 58 27 12 14 393 1 Melee 774 | . . . 3 35 . 45 9 5 . 13 91 . 89 4 7 . 3 103 . 68 6 23 . 20 23 . 67 10 9 3 8 58 27 12 14 19 . Projectile 16 | . . . . . . 1 . . . . . . 3 . . . . . . . . . . . . . . . . . . . . . . 11 1 AOE 838 | . . 78 17 . . . . . . . . . . 3 . . . . . . 79 31 . . . . 38 215 . 14 . . . . . 363 . Actions | -11 -10 -9 -8 -7 -7 -7 -7 -7 -7 -6 -6 -6 -6 -6 -6 -6 -5 -5 -5 -5 -5 -5 -5 -4 -4 -4 -4 -4 -4 -4 -3 -3 -3 -2 -2 -2 -1 --------- Run | Scr Mat Mat Mat Fac Was Fac Low Low Zio Pro Fac Was Fac Low Low Dat Pro Fac Was Fac Upp Upp Zhi Pro Fac Was Fac Upp Upp War Pro Res Qua Res Tes Sec Acc Total 48620 | 110 91 811 2027 1787 103 2897 934 665 956 784 3674 801 4245 2094 772 77 539 2978 85 3890 822 674 176 659 1409 365 2655 677 521 980 338 1942 938 2199 778 2543 624 Wait 5784 | . 7 15 219 176 . 246 87 . 34 186 186 215 388 789 44 . 35 306 . 1324 31 46 . 124 101 52 229 19 17 213 15 121 70 54 74 344 17 Move 40015 | 78 75 636 1490 1487 94 2549 830 660 922 585 3301 551 3707 1229 703 77 487 2497 85 2427 774 592 162 515 1235 309 2280 613 483 721 305 1701 787 2082 641 1818 527 Hop 4 | . . . . 4 . . . . . . . . . . . . . . . . . . . . . . . . . . . . . . . . . Pick Up 260 | 11 2 21 17 11 1 16 . . . . 12 3 4 7 5 . 1 19 . 12 1 2 1 . 11 2 13 . 1 14 1 11 8 10 14 29 . Fast Attach 97 | 3 . 7 18 6 . 1 . . . . . 2 11 2 2 . 2 1 . 1 1 2 5 . 6 . 2 . . . . 1 1 3 1 17 2 Attach 155 | 4 . 14 5 12 4 1 . . . . 6 1 3 7 . . 1 4 . . 1 2 . . 3 . 6 . . 2 2 2 4 5 2 51 13 Detach 44 | . . 1 . 2 . . . . . . . . 1 4 . . 1 . . . 1 1 . . . . 2 . . . . . . 2 . 21 8 Swap 202 | . . 12 24 1 . 7 . . . . 11 3 1 6 4 . . 8 . 26 . . . . 3 . 11 11 2 3 1 11 10 8 3 35 1 Drop 268 | . 1 10 32 23 4 8 . . . . 7 5 6 7 7 . 3 12 . 13 2 3 5 . 12 2 6 . 2 11 4 8 11 11 17 26 10 Fire 650 | 14 6 95 219 10 . 3 5 . . . 13 21 4 34 . . 6 . . . 5 3 . . . . 3 19 . 1 . . 8 . . 135 46 Melee 1133 | . . . 3 55 . 66 12 5 . 13 134 . 119 9 7 . 3 130 . 87 6 23 3 20 38 . 101 15 16 15 10 87 39 24 26 67 . Ram . | . . . . . . . . . . . . . . . . . . . . . . . . . . . . . . . . . . . . . . Kick . | . . . . . . . . . . . . . . . . . . . . . . . . . . . . . . . . . . . . . . Crush . | . . . . . . . . . . . . . . . . . . . . . . . . . . . . . . . . . . . . . . Escape Stasis 5 | . . . . . . . . . . . 4 . 1 . . . . . . . . . . . . . . . . . . . . . . . . Rewire . | . . . . . . . . . . . . . . . . . . . . . . . . . . . . . . . . . . . . . . Trap . | . . . . . . . . . . . . . . . . . . . . . . . . . . . . . . . . . . . . . . Miscellaneous 3 | . . . . . . . . . . . . . . . . . . 1 . . . . . . . . 2 . . . . . . . . . . Route ------- -11/Scrapyard -10/Materials -9/Materials -8/Materials (discovered 3 exits: *Fac x3) -7/Factory -7/Waste -7/Factory (discovered 6 exits: *Fac x2 / *Sto x2 / *Low x2) -7/Lower Caves (discovered 2 exits: *Low / *Zio) -7/Lower Caves (discovered 2 exits: *Fac / *Zio) -7/Zion -6/Proximity Caves -6/Factory (discovered 6 exits: *Fac x3 / *Low x2 / *Ext) -6/Waste -6/Factory (discovered 5 exits: *Fac / *Low x2 / *Ext x2) -6/Lower Caves -6/Lower Caves (discovered 2 exits: *Fac / *Dat) -6/Data Miner -5/Proximity Caves -5/Factory (discovered 5 exits: *Fac x4 / *Upp) -5/Waste -5/Factory (discovered 4 exits: *Fac x2 / *Upp x2) -5/Upper Caves -5/Upper Caves (discovered 2 exits: *Fac / *Zhi) -5/Zhirov -4/Proximity Caves -4/Factory -4/Waste -4/Factory (discovered 4 exits: *Res x2 / *Upp x2) -4/Upper Caves -4/Upper Caves (discovered 2 exits: *Res / *War) -4/Warlord -3/Proximity Caves -3/Research (discovered 4 exits: *Res / Arm / *Qua x2) -3/Quarantine -2/Research (discovered 2 exits: *Acc / *Tes) -2/Testing -2/Section 7 -1/Access History --------- Turn | Location | Event 9 | -11/Scrapyard | Discovered new exit (range 15) 127 | -11/Scrapyard | Entered Materials 215 | -10/Materials | Discovered new exit (range 6) 223 | -10/Materials | Entered another Materials area 223 | -9/Materials | Evolved 2 slots: Propulsion x1, Utility x1 309 | -9/Materials | Build established: Mutant 522 | -9/Materials | Lost 5 parts (3n2w) 615 | -9/Materials | Core integrity fell below 50% 657 | -9/Materials | Lost 9 parts (1p4n4w) 951 | -9/Materials | Build established: Scavenger-Mutant 952 | -9/Materials | Discovered new exit (range 16) 1091 | -9/Materials | Entered another Materials area 1091 | -8/Materials | Evolved 2 slots: Propulsion x1, Utility x1 1722 | -8/Materials | Lost 5 parts (1p2n1u1w) 1988 | -8/Materials | Discovered new exit (range 3) 2477 | -8/Materials | Discovered new exit (range 9) 2858 | -8/Materials | Core integrity fell below 50% 2884 | -8/Materials | Build established: Mutant 3334 | -8/Materials | Discovered new exit (range 14) 3364 | -8/Materials | Entered Factory 3364 | -7/Factory | Evolved 2 slots: Power x1, Utility x1 3650 | -7/Factory | Build established: Hacker-Sprinter 3665 | -7/Factory | Fabricated Mic. Fission Core (x2) 3799 | -7/Factory | Fabricated Cld. Airjet (x1) 3930 | -7/Factory | Discovered new exit (range 8) 3932 | -7/Factory | Identified exit to Factory 4078 | -7/Factory | Fabricated Cld. Airjet? 4193 | -7/Factory | Sucked down chute 4193 | -7/Factory | Entered Waste 4198 | -7/Waste | Spotted C-40 Crusher 4200 | -7/Waste | Spotted C-40 Crusher 4207 | -7/Waste | Spotted C-40 Crusher 4207 | -7/Waste | Spotted C-40 Crusher 4208 | -7/Waste | Spotted C-40 Crusher 4216 | -7/Waste | Discovered new exit (range 11) 4219 | -7/Waste | Identified exit to Factory 4228 | -7/Waste | Entered Factory 4360 | -7/Factory | Repaired Variable Charge Gun 4423 | -7/Factory | Identified exit to Storage 4423 | -7/Factory | Identified exit to Lower Caves 4429 | -7/Factory | Discovered exit to Factory (range 7) 4512 | -7/Factory | Build established: Hacker-Mutant 4528 | -7/Factory | Found Prototype Launcher 4671 | -7/Factory | Repaired Mic. Fission Core 4928 | -7/Factory | Discovered exit to Factory (range 13) 5004 | -7/Factory | Identified Rocket Array 5065 | -7/Factory | P-60 Hacker assimilated allied Administrator 4a 5364 | -7/Factory | Fabricated Cld. Airjet (x1) 5598 | -7/Factory | Fabricated Cld. Airjet (x1) 5646 | -7/Factory | Entered Lower Caves 5646 | -7/Lower Caves | Accompanied by 1 ally 5741 | -7/Lower Caves | Identified exit to Lower Caves 5768 | -7/Lower Caves | Encountered a Warlord checkpoint 5947 | -7/Lower Caves | A Derelict revealed a hidden shortcut to a safe place 5949 | -7/Lower Caves | Identified exit to Zion 6084 | -7/Lower Caves | Entered another Lower Caves area 6105 | -7/Lower Caves | Discovered exit to Factory (range 15) 6140 | -7/Lower Caves | Spotted B-75 Beast 6159 | -7/Lower Caves | Learned Factory emergency access door positions 6309 | -7/Lower Caves | Learned Factory emergency access door positions 6310 | -7/Lower Caves | Discovered exit to Zion (range 16) 6348 | -7/Lower Caves | Entered Zion 6398 | -7/Zion | Discovered new exit (range 13) 6417 | -7/Zion | System corruption cleaned by Quarantine Array 6443 | -7/Zion | Learned location of Recycling (-7) 6509 | -7/Zion | Learned location of Quarantine (-3) 6523 | -7/Zion | Learned Factory garrison access intel 6588 | -7/Zion | Given A8's code to call for help 6700 | -7/Zion | Gained Derelict followers 6711 | -7/Zion | Identified exit to Proximity Caves 6733 | -7/Zion | Entered Proximity Caves 6733 | -6/Proximity Caves | Accompanied by 3 allies 7131 | -6/Proximity Caves | Discovered exit to Factory (range 11) 7174 | -6/Proximity Caves | Entered Factory 7174 | -6/Factory | Evolved 2 slots: Utility x2 7175 | -6/Factory | Identified exit to Extension 7177 | -6/Factory | Loaded intel: 4 garrison access locations 7322 | -6/Factory | Discovered new exit (range 14) 7347 | -6/Factory | Identified exit to Factory 7591 | -6/Factory | Fabricated Exp. Sensor Array? 7687 | -6/Factory | Local fabrication network quarantined 7690 | -6/Factory | Fabricated Exp. Sensor Array? 7759 | -6/Factory | Fabricated Exp. Signal Interpreter (x1) 7878 | -6/Factory | Discovered exit to Factory (range 8) 8028 | -6/Factory | Discovered exit to Factory (range 15) 8287 | -6/Factory | Repaired Cld. Airjet? 8467 | -6/Factory | Repaired Imp. Airjet 8575 | -6/Factory | Discovered new exit (range 15) 8780 | -6/Factory | P-70 Sage assimilated allied Technician 5b 8871 | -6/Factory | Discovered new exit (range 6) 9014 | -6/Factory | Sucked down chute 9014 | -6/Factory | Entered Waste 9014 | -6/Waste | The area was eerily silent 9073 | -6/Waste | Discovered new exit (range 13) 9380 | -6/Waste | A Compactor rumbled back to life 9387 | -6/Waste | Spotted C-40 Crusher 9441 | -6/Waste | Destroyed C-40 Crusher 9495 | -6/Waste | Identified exit to Factory 9495 | -6/Waste | Entered Factory 9605 | -6/Factory | Repaired Imp. Overload Amplifier 9656 | -6/Factory | Identified exit to Lower Caves 9973 | -6/Factory | Fabricated Linear Gravjet? 9991 | -6/Factory | Fabricated Adv. Component Analysis Suite? 10194 | -6/Factory | Local fabrication network quarantined 10195 | -6/Factory | First assault squad dispatched 10232 | -6/Factory | Repaired Mic. Fission Core 10281 | -6/Factory | Crushed by falling debris 10310 | -6/Factory | Build established: Hacker-Sprinter 10319 | -6/Factory | Found Exp. Signal Interpreter 10353 | -6/Factory | Discovered exit to Factory (range 11) 10525 | -6/Factory | Repaired Mic. Fission Core 10554 | -6/Factory | Repaired Mic. Fission Core 11067 | -6/Factory | Repaired Linear Gravjet 11138 | -6/Factory | Repaired Cld. Airjet 11487 | -6/Factory | Entered Lower Caves 11488 | -6/Lower Caves | Encountered a Warlord checkpoint 11634 | -6/Lower Caves | Learned Factory stockpile data 11868 | -6/Lower Caves | Build established: Hacker-Mutant 11971 | -6/Lower Caves | Attracted the attention of an 0b10 outpost 12288 | -6/Lower Caves | Discovered new exit (range 10) 13118 | -6/Lower Caves | Identified exit to Lower Caves 13118 | -6/Lower Caves | Entered another Lower Caves area 13121 | -6/Lower Caves | Discovered exit to Factory (range 8) 13138 | -6/Lower Caves | Learned Factory non-interactive machine intel 13355 | -6/Lower Caves | Spotted B-75 Beast 13387 | -6/Lower Caves | Identified exit to Data Miner 13429 | -6/Lower Caves | Entered Data Miner 13429 | -6/Data Miner | Discovered new exit (range 6) 13436 | -6/Data Miner | Met Data Miner 13441 | -6/Data Miner | Learned location of Section 7 (-2) 13441 | -6/Data Miner | Acquired the access code to Warlord's prototype stash 13447 | -6/Data Miner | Received God Mode back door access code from Data Miner 13455 | -6/Data Miner | Identified exit to Proximity Caves 13455 | -6/Data Miner | Entered Proximity Caves 13476 | -5/Proximity Caves | Learned Factory non-interactive machine intel 13476 | -5/Proximity Caves | Learned 8 Factory zone layouts 13477 | -5/Proximity Caves | Learned Factory trap positions 13620 | -5/Proximity Caves | Build established: Hacker-Sprinter 13662 | -5/Proximity Caves | Discovered exit to Factory (range 8) 13678 | -5/Proximity Caves | Entered Factory 13678 | -5/Factory | Evolved 2 slots: Propulsion x1, Utility x1 13679 | -5/Factory | Identified exit to Factory 13680 | -5/Factory | Loaded intel: 83 trap records 13682 | -5/Factory | Loaded intel: 227 non-interactive machine locations 13810 | -5/Factory | Repaired Imp. Overload Regulator 14131 | -5/Factory | Discovered exit to Factory (range 4) 14300 | -5/Factory | Discovered new exit (range 6) 14482 | -5/Factory | Local fabrication network quarantined 14524 | -5/Factory | Found Imp. Powered Armor 14550 | -5/Factory | Fabricated Cld. Gravmag System? 14742 | -5/Factory | Discovered exit to Factory (range 15) 14949 | -5/Factory | Repaired Cld. Airjet 14987 | -5/Factory | Discovered exit to Factory (range 13) 15125 | -5/Factory | Sucked down chute 15125 | -5/Factory | Entered Waste 15133 | -5/Waste | Spotted C-40 Crusher 15139 | -5/Waste | Spotted C-40 Crusher 15140 | -5/Waste | EMP discharged 15145 | -5/Waste | Spotted C-40 Crusher 15146 | -5/Waste | Spotted C-40 Crusher 15149 | -5/Waste | Discovered new exit (range 16) 15149 | -5/Waste | Spotted C-40 Crusher 15154 | -5/Waste | Identified exit to Factory 15155 | -5/Waste | Entered Factory 15156 | -5/Factory | Loaded intel: 192 non-interactive machine locations 15179 | -5/Factory | Discovered new exit (range 3) 15180 | -5/Factory | Identified exit to Upper Caves 15243 | -5/Factory | Fabricated Cld. Gravmag System (x1) 15446 | -5/Factory | Build established: Hacker-Mutant 15456 | -5/Factory | Local fabrication network quarantined 15517 | -5/Factory | Fabricated Lgt. Regenerative Plating? 15724 | -5/Factory | Discovered exit to Factory (range 4) 15755 | -5/Factory | First assault squad dispatched 16120 | -5/Factory | Discovered exit to Factory (range 10) 16648 | -5/Factory | Repaired Lrg. Storage Unit 16733 | -5/Factory | Spotted B-75 Beast 17628 | -5/Factory | Entered Upper Caves 17628 | -5/Upper Caves | Accompanied by 1 ally 17710 | -5/Upper Caves | Encountered a Warlord checkpoint 17781 | -5/Upper Caves | Learned Factory terminal intel 17926 | -5/Upper Caves | Discovered new exit (range 15) 17963 | -5/Upper Caves | Identified exit to Upper Caves 17969 | -5/Upper Caves | Entered another Upper Caves area 17969 | -5/Upper Caves | Accompanied by 1 ally 17978 | -5/Upper Caves | Learned Factory stockpile data 17981 | -5/Upper Caves | Discovered exit to Factory (range 12) 18241 | -5/Upper Caves | Discovered new exit (range 10) 18262 | -5/Upper Caves | Identified exit to Zhirov 18301 | -5/Upper Caves | Entered Zhirov 18301 | -5/Zhirov | Discovered new exit (range 3) 18308 | -5/Zhirov | Met Zhirov 18315 | -5/Zhirov | Learned location of Testing (-2) 18315 | -5/Zhirov | Learned location of Command (-1) 18318 | -5/Zhirov | Zhirov requested help retrieving the SGEMP Prototype 18324 | -5/Zhirov | Found Alien Artifact 18324 | -5/Zhirov | Identified Integrated Dissipator 18324 | -5/Zhirov | Installed Integrated Dissipator, increased core heat dissipation (+2%) 18348 | -5/Zhirov | Found Alien Artifact 18378 | -5/Zhirov | Identified exit to Proximity Caves 18378 | -5/Zhirov | Entered Proximity Caves 18725 | -4/Proximity Caves | Learned 4 Research zone layouts 18727 | -4/Proximity Caves | Discovered exit to Factory (range 8) 18738 | -4/Proximity Caves | Entered Factory 18738 | -4/Factory | Evolved 2 slots: Propulsion x1, Utility x1 18740 | -4/Factory | Loaded intel: 20 terminal locations 18756 | -4/Factory | Discovered new exit (range 9) 18759 | -4/Factory | Identified exit to Research 18810 | -4/Factory | Found Prototype Launcher 18861 | -4/Factory | Identified Mni. Smartbomb Launcher 18875 | -4/Factory | Repaired Cld. Airjet 19299 | -4/Factory | Garrison activated, responded to threat 19389 | -4/Factory | Identified Transdimensional Reconstructor 19400 | -4/Factory | Manually triggered Chute Trap 19400 | -4/Factory | Sucked down chute 19400 | -4/Factory | Entered Waste 19403 | -4/Waste | Spotted C-40 Crusher 19406 | -4/Waste | Spotted C-40 Crusher 19410 | -4/Waste | 1 allies followed down the chute 19410 | -4/Waste | Spotted C-40 Crusher 19435 | -4/Waste | Spotted C-40 Crusher 19438 | -4/Waste | Spotted C-40 Crusher 19440 | -4/Waste | Spotted C-40 Crusher 19442 | -4/Waste | Discovered new exit (range 14) 19446 | -4/Waste | Warlord forces began an assault 19449 | -4/Waste | Allies destroyed C-40 Crusher 19462 | -4/Waste | Allies destroyed C-40 Crusher 19464 | -4/Waste | Allies destroyed C-40 Crusher 19469 | -4/Waste | Allies destroyed C-40 Crusher 19560 | -4/Waste | Identified exit to Factory 19561 | -4/Waste | Entered Factory 19611 | -4/Factory | Found Quantum Capacitor 19664 | -4/Factory | Identified exit to Upper Caves 19908 | -4/Factory | Repaired Cmb. Gravmag System? 19932 | -4/Factory | Discovered exit to Research (range 5) 20110 | -4/Factory | Discovered exit to Research (range 5) 20253 | -4/Factory | Repaired Linear Gravjet 20275 | -4/Factory | Fabricated Exp. Targeting Computer? 20311 | -4/Factory | Repaired Linear Gravjet 20420 | -4/Factory | Fabricated Exp. Transmission Jammer? 20472 | -4/Factory | Local fabrication network quarantined 20521 | -4/Factory | Repaired Imp. Linear Gravjet 20585 | -4/Factory | Build established: Hacker-Sprinter 20641 | -4/Factory | Found Unknown Protection 20649 | -4/Factory | Identified Hvy. Insulated Plating 20794 | -4/Factory | Spotted B-86 Titan 20849 | -4/Factory | Entered Upper Caves 20849 | -4/Upper Caves | Accompanied by 2 allies 21049 | -4/Upper Caves | Destroyed 7 combat bots 21150 | -4/Upper Caves | Discovered new exit (range 14) 21153 | -4/Upper Caves | Identified exit to Upper Caves 21154 | -4/Upper Caves | Entered another Upper Caves area 21154 | -4/Upper Caves | Discovered exit to Research (range 6) 21187 | -4/Upper Caves | Learned Research garrison access intel 21207 | -4/Upper Caves | Encountered a Warlord checkpoint 21289 | -4/Upper Caves | A Commander dispatched an escort 21321 | -4/Upper Caves | Discovered new exit (range 14) 21324 | -4/Upper Caves | Identified exit to Warlord 21366 | -4/Upper Caves | Entered Warlord 21366 | -4/Warlord | Accompanied by 2 allies 21367 | -4/Warlord | Commander's escort returned to base 21367 | -4/Warlord | Commander's escort returned to base 21378 | -4/Warlord | System corruption cleaned by Quarantine Array 21442 | -4/Warlord | Met Warlord 21446 | -4/Warlord | Opened Warlord's prototype stash 21449 | -4/Warlord | Found Prototype Device 21452 | -4/Warlord | Found Prototype Device 21460 | -4/Warlord | Identified Exp. Phase Shifter 21467 | -4/Warlord | Warlord's base attacked by MAIN.C 21483 | -4/Warlord | Found Prototype Processor 21486 | -4/Warlord | Found Prototype Reactor 21489 | -4/Warlord | Identified Vortex Chain Reactor 21495 | -4/Warlord | Identified Exp. Core Analyzer 21500 | -4/Warlord | Identified Thermal Barrier 21528 | -4/Warlord | Found Prototype Energy Gun 21529 | -4/Warlord | Found Prototype Energy Gun 21538 | -4/Warlord | Identified Vortex Rifle (x2) 21578 | -4/Warlord | Found Prototype Energy Gun 21581 | -4/Warlord | Identified Plasma Storm 21593 | -4/Warlord | Learned Factory recycling unit intel 21593 | -4/Warlord | Learned Armory scanalyzer intel 21594 | -4/Warlord | Learned Armory stockpile data 21753 | -4/Warlord | Opened side exit 21817 | -4/Warlord | Warlord forces counterattacked 21844 | -4/Warlord | Discovered new exit (range 10) 21847 | -4/Warlord | Identified exit to Proximity Caves 21859 | -4/Warlord | Entered Proximity Caves 21859 | -3/Proximity Caves | Accompanied by 1 ally 22008 | -3/Proximity Caves | Entered Research 22008 | -3/Research | Evolved 2 slots: Utility x2 22010 | -3/Research | Loaded intel: 4 garrison access locations 22040 | -3/Research | Spotted B-86 Titan 22070 | -3/Research | Identified exit to Armory 22070 | -3/Research | Identified exit to Quarantine 22119 | -3/Research | Fabricated Exp. Transmission Jammer (x1) 22216 | -3/Research | Fabricated Exp. Heat Sink (x1) 22285 | -3/Research | Build established: Hacker-Mutant 22874 | -3/Research | Discovered new exit (range 4) 22874 | -3/Research | Identified exit to Research 22976 | -3/Research | Entered Quarantine 23180 | -3/Quarantine | Found Alien Launcher 23238 | -3/Quarantine | Repaired Cld. Gravmag System 23251 | -3/Quarantine | Found Alien Artifact 23270 | -3/Quarantine | Found Alien Slashing Weapon 23270 | -3/Quarantine | Identified Sigix Broadsword 23287 | -3/Quarantine | Identified Core Reset Matrix 23321 | -3/Quarantine | Found Alien Artifact 23350 | -3/Quarantine | Discovered exit to Research (range 15) 23381 | -3/Quarantine | Identified Phase Redirector 23384 | -3/Quarantine | Found Transdimensional Reconstructor 23400 | -3/Quarantine | Identified Sigix Terminator 23484 | -3/Quarantine | Entered Research 23484 | -2/Research | Warlord forces began assault on 0b10 23484 | -2/Research | Evolved 2 slots: Utility x2 23590 | -2/Research | Fabricated Cld. Proton Cannon (x1) 23594 | -2/Research | Research machine network offline 23696 | -2/Research | Met up with Warlord 23727 | -2/Research | Found Prototype Device 23731 | -2/Research | Identified Exp. Actuator Array 23862 | -2/Research | Found Prototype Slashing Weapon 23862 | -2/Research | Identified Particle Cleaver 23958 | -2/Research | Borebot progress halted 24174 | -2/Research | Discovered new exit (range 12) 24177 | -2/Research | Identified exit to Access 24212 | -2/Research | Discovered new exit (range 16) 24217 | -2/Research | Identified exit to Testing 24248 | -2/Research | Found Prototype Hackware 24259 | -2/Research | Identified Exp. System Shield 24340 | -2/Research | Borebot progress halted 24380 | -2/Research | Entered Testing 24451 | -2/Testing | Found Prototype Protection 24455 | -2/Testing | Found Prototype Protection 24455 | -2/Testing | Identified Med. Regenerative Plating 24477 | -2/Testing | Fabricated Cld. Proton Cannon (x1) 24507 | -2/Testing | Found Prototype Processor 24511 | -2/Testing | Identified Spectral Analyzer 24511 | -2/Testing | Identified SHELL Armor 24537 | -2/Testing | Spotted PG-5R7GNTBD9K 24717 | -2/Testing | Fabricated Cmb. Antigrav System? 24750 | -2/Testing | Spotted PG-5XX5P9JH54 24758 | -2/Testing | Incoming investigation squad redirected 24771 | -2/Testing | Spotted Fortress 24798 | -2/Testing | Discovered new exit (range 5) 24799 | -2/Testing | Identified exit to Section 7 24804 | -2/Testing | Entered Section 7 24871 | -2/Section 7 | Spotted S7 Guard 24878 | -2/Section 7 | Destroyed S7 Guard 24895 | -2/Section 7 | Found Alien Artifact 24926 | -2/Section 7 | Spotted S7 Guard 24929 | -2/Section 7 | Spotted S7 Guard 24935 | -2/Section 7 | Found Alien Artifact 25110 | -2/Section 7 | Found Integrated Dissipator 25110 | -2/Section 7 | Installed Integrated Dissipator, increased core heat dissipation (+2%) 25135 | -2/Section 7 | Found Integrated Dissipator 25135 | -2/Section 7 | Installed Integrated Dissipator, increased core heat dissipation (+2%) 25166 | -2/Section 7 | Identified Integrated Singularity Reactor 25166 | -2/Section 7 | Identified Core Membrane 25166 | -2/Section 7 | Installed Integrated Singularity Reactor, increased core energy generation (+2%) 25168 | -2/Section 7 | Installed Core Membrane, gained immunity to corruption 25205 | -2/Section 7 | Destroyed S7 Guard 25230 | -2/Section 7 | Destroyed S7 Guard 25251 | -2/Section 7 | Found Alien Artifact 25295 | -2/Section 7 | Incoming investigation squad redirected 25353 | -2/Section 7 | Identified Core Regenerator 25382 | -2/Section 7 | Incoming investigation squad redirected 25389 | -2/Section 7 | Found Alien Artifact 25487 | -2/Section 7 | Repaired Imp. Overload Amplifier 25758 | -2/Section 7 | Scanned by Researcher 25759 | -2/Section 7 | Intercept squad dispatched 25774 | -2/Section 7 | Spotted Executioner 25776 | -2/Section 7 | Spotted Executioner 25778 | -2/Section 7 | Fired Sigix Terminator 25778 | -2/Section 7 | Destroyed Tracker 25778 | -2/Section 7 | Destroyed Tracker 25786 | -2/Section 7 | Destroyed Executioner 25793 | -2/Section 7 | Destroyed Executioner 25804 | -2/Section 7 | First assault squad dispatched 25814 | -2/Section 7 | Destroyed 8 combat bots 25829 | -2/Section 7 | Found Alien Energy Gun 25856 | -2/Section 7 | Spotted Combat Programmer 25941 | -2/Section 7 | Destroyed Combat Programmer 25947 | -2/Section 7 | Found Prototype Device 25952 | -2/Section 7 | Found Prototype Energy Cannon 25953 | -2/Section 7 | Identified EMDS 25976 | -2/Section 7 | Identified Exp. Focal Shield 26122 | -2/Section 7 | Identified Sigix Quantum Sheargun 26130 | -2/Section 7 | Spotted B-99 Colossus 26156 | -2/Section 7 | Found Alien Artifact 26156 | -2/Section 7 | Identified LRC Matter Compressor 26156 | -2/Section 7 | Installed LRC Matter Compressor, increased matter storage capacity (+125) 26157 | -2/Section 7 | Found Alien Artifact 26157 | -2/Section 7 | Identified LRC Storage 26157 | -2/Section 7 | Installed LRC Storage, increased inventory capacity (+2) 26197 | -2/Section 7 | Found Alien Artifact 26197 | -2/Section 7 | Identified Integrated Reactor (x2) 26197 | -2/Section 7 | Installed Integrated Reactor, increased core energy generation (+2%) 26249 | -2/Section 7 | Found Alien Artifact 26250 | -2/Section 7 | Found Alien Artifact 26293 | -2/Section 7 | Intercept squad dispatched 26299 | -2/Section 7 | Spotted Tracker 26299 | -2/Section 7 | Spotted Tracker 26301 | -2/Section 7 | Spotted Tracker 26330 | -2/Section 7 | Incoming assault squad redirected 26348 | -2/Section 7 | Warped through subspace 26366 | -2/Section 7 | Lost 3 parts (1n2u) 26427 | -2/Section 7 | Installed Integrated Reactor, increased core energy generation (+2%) 26428 | -2/Section 7 | Identified Core Expander (x2) 26428 | -2/Section 7 | Installed Core Expander, added new Propulsion slot 26439 | -2/Section 7 | Lost 4 parts (1p1n1u1w) 26495 | -2/Section 7 | Spotted Alpha 7 26495 | -2/Section 7 | Spotted Alpha 7 26497 | -2/Section 7 | Spotted S7 Guard 26510 | -2/Section 7 | Found Alien Artifact 26518 | -2/Section 7 | Warped through subspace 26533 | -2/Section 7 | Destroyed Tracker 26537 | -2/Section 7 | Found Prototype Energy Gun 26543 | -2/Section 7 | Discovered exit to Access (range 5) 26546 | -2/Section 7 | Entered Access 26546 | -1/Access | Evolved 2 slots: Utility x2 26547 | -1/Access | Identified Integrated Heat Negator 26547 | -1/Access | Installed Integrated Heat Negator, increased core heat dissipation (+2%) 26550 | -1/Access | Identified Immobilizer 26687 | -1/Access | Intercept squad dispatched 26705 | -1/Access | Spotted Tracker 26705 | -1/Access | Spotted Tracker 26720 | -1/Access | Destroyed Tracker 26732 | -1/Access | Destroyed Tracker 26742 | -1/Access | Spotted Combat Programmer 26785 | -1/Access | Spotted Combat Programmer 26791 | -1/Access | Found Exp. Phase Shifter 26863 | -1/Access | Core integrity fell below 50% 26871 | -1/Access | Core integrity fell below 20% 26873 | -1/Access | Incoming investigation squad redirected 26891 | -1/Access | Lost 12 parts (1p4n5u2w) 26898 | -1/Access | Destroyed by Combat Programmer with EMDS Last Messages --------------- 26890_ Penetrated by EMDS Slug. 26890_ Core Membrane filtered system corruption (1). 26891_ Slug penetrates Wall. 26892_ Wave Collapse Detector explodes. 26892_ SHELL Armor destroyed. 26892_ S-43 Plague destroyed. 26893_ Penetrated by EMDS Slug. 26894_ U-05 Engineer lays Concrete. 26894_ Slug penetrates Wall. 26895_ U-05 Engineer lays Concrete. 26895_ Penetrated by EMDS Slug. 26895_ Core Membrane filtered system corruption (1). 26895_ U-05 Engineer lays Concrete. 26896_ Slug penetrates Earth. 26896_ Slug penetrates Reinforced Barrier. 26896_ U-05 Engineer lays Concrete. 26897_ The unstable cave ceiling collapses. 26897_ U-05 Engineer lays Concrete. 26898_ Penetrated by EMDS Slug. 26898_ Core Membrane filtered system corruption (1). Map ----- +----------------------------------------------------+ | #####/###### ####### #???????????????????????? | | ??? ???# #??????????????????????????????????? | | ?? ??# #??????????????????????????????????? | | ?# ?# #??????????????????????????????????? | | ?# " ## #??????????????????????????????????? | | ?# """ ## #??????????????????????????????????? | | ?# """ ## #??????????????????????????????????? | | ?# " ## #??????????????????????????????????? | | ?# ## #??????????????????????????????????? | | ?# ? ## #??????????????????????????????????? | | ?####?#?#### #??????????????????????????????????? | | ???????????# #??????????????????????????????????? | | ???????????# #??????????????????????????????????? | | ???????????# #######"???????????????????????????? | | ???????????# """T""""???????????????????????????? | | ???????????# """ """"???????????????????????????? | | ???????????# "???????????????????????????? | | ???????????# "???????????????????????????? | | ???????????# =%[ "???????????????????????????? | | ???????????# * "???????????????????????????? | | ???????????# "???????????????????????????? | | ???????????# "???????????????????????????? | | ???????????# "???????????????????????????? | | ???????????# "???????????????????????????? | | ???????????# #### ##"######?????????????????????? | | ???????????# ## p @ #?????????????????????? | | ???????????#%*## # ####????????????????????? | | ???????????#= # #????????????????????? | | ???????????# #% %* #????????????????????? | | ???????????+ hpuu ""#????????????????????? | | ???????????# #u ""#????????????????????? | | ???????????# # S"#????????????????????? | | ???????????# # """#????????????????????? | | ???????????# # """#????????????????????? | | ???????????# # """#????????????????????? | | ???????????# # #????????????????????? | | ???????????# # #????????????????????? | | ???????????# # #????????????????????? | | ???????????# ###############????????????????????? | | ???????????# ???????????????????????????????????? | | ???????????[ ???????????????????????????????????? | | ??????????? ???????????????????????????????????? | | ??????????? ???????????????????????????????????? | | ???????????| ???????????????????????????????????? | | ?????????????????????????????????????????????????? | | ?????????????????????????????????????????????????? | | ?????????????????????????????????????????????????? | | ?????????????????????????????????????????????????? | | ?????????????????????????????????????????????????? | | ?????????????????????????????????????????????????? | +----------------------------------------------------+ Best States ------------- Heat Dissipation 152 Energy Generation 79 Energy Capacity 1005 Matter Stores 450 Matter Capacity 450 Sight Range 16 Robot Scan Range 30 Terrain Scan Density 10 Jamming Range 22 Armor Coverage 1125 Resistance: KI 30 Resistance: TH 30 Utility Shielding 90 Weapon Shielding 90 Phase Shifting 20 Evasion (%) 91 Targeting Accuracy 12 Core Analysis 15 Recoil Reduction 1 Energy Filtering 50 Particle Charging 20 Overload Amplification 75 Overload Regulation 60 Offensive Hacking 42 Defensive Hacking 14 Item Schematics ----------------- Mic. Fission Core | -7/Factory | Hacked Cld. Airjet | -7/Factory | Scanalyzed Hacking Suite | -7/Factory | Hacked Exp. Signal Interpreter | -6/Factory | Hacked Exp. Sensor Array | -6/Factory | Hacked Imp. System Shield | -6/Factory | Scanalyzed Exp. Utility Shielding | -6/Factory | Scanalyzed Linear Gravjet | -6/Factory | Hacked Adv. Component Analysis Suite | -6/Factory | Scanalyzed HERF Cannon | -6/Factory | Hacked Combat Drone Bay | -6/Data Miner | Free Lgt. Regenerative Plating | -6/Data Miner | Free Exp. Flexi-carbon Leg | -6/Data Miner | Free Cmb. Gravmag System | -6/Data Miner | Free Exp. Cesium-ion Thruster | -6/Data Miner | Free Triangulator | -6/Data Miner | Free Exp. Transmission Jammer | -6/Data Miner | Free Plasma Sword | -6/Data Miner | Free Kinetic Spear | -6/Data Miner | Free Cld. Gravmag System | -5/Factory | Hacked Imp. System Restoration Module | -5/Factory | Hacked Adv. System Shield | -5/Factory | Hacked Assault Drone Bay | -5/Zhirov | Free Exp. Heat Sink | -5/Zhirov | Free Exp. Optical Array | -5/Zhirov | Free Imp. Arc Thrower | -5/Zhirov | Free Lgt. Quantum Reactor | -4/Factory | Hacked Adv. Core Analyzer | -4/Factory | Hacked Adv. Armor Integrity Analyzer | -4/Factory | Hacked Exp. Targeting Computer | -4/Factory | Hacked Imp. Phase Shifter | -4/Factory | Hacked Adv. Phase Shifter | -4/Factory | Hacked Cmb. Antigrav System | -3/Research | Hacked Cld. Proton Cannon | -3/Quarantine | Hacked Robot Schematics ------------------ S-27 Virus | -6/Data Miner | Free G-50 Soldier | -6/Data Miner | Free X-72 Disruptor | -6/Data Miner | Free P-70 Sage | -6/Data Miner | Free I-36 Angel | -6/Data Miner | Free Fabricated ------------ Mic. Fission Core | x2 | -7/Factory Cld. Airjet | x1 | -7/Factory Cld. Airjet | x1 | -7/Factory Cld. Airjet | x1 | -7/Factory Cld. Airjet | x1 | -7/Factory Exp. Sensor Array | x1 | -6/Factory Exp. Sensor Array | x1 | -6/Factory Exp. Signal Interpreter | x1 | -6/Factory Linear Gravjet | x2 | -6/Factory Adv. Component Analysis Suite | x1 | -6/Factory Cld. Gravmag System | x1 | -5/Factory Cld. Gravmag System | x1 | -5/Factory Lgt. Regenerative Plating | x1 | -5/Factory Exp. Targeting Computer | x1 | -4/Factory Exp. Transmission Jammer | x1 | -4/Factory Exp. Transmission Jammer | x1 | -3/Research Exp. Heat Sink | x1 | -3/Research Cld. Proton Cannon | x1 | -2/Research Cld. Proton Cannon | x1 | -2/Testing Cmb. Antigrav System | x2 | -2/Testing Alien Tech Used ----------------- Integrated Dissipator Sigix Broadsword Phase Redirector Integrated Singularity Reactor Core Membrane Sigix Terminator Sigix Quantum Sheargun LRC Matter Compressor LRC Storage Integrated Reactor Transdimensional Reconstructor Core Expander Integrated Heat Negator Achievements -------------- None Challenges ------------ None Game ------ Seed ThrusterProcessingSuite Manual? 0 Play Time 08:47:18 Cumulative 670.9 hours Start 2020.02.16 @ 18:53:55 End 2020.02.23 @ 21:55:03 Sessions 11 Manual Loads 0 Difficulty Rogue Special Mode None Game No. 365 Rogue 365 Adventurer 0 Explorer 0 Win Type - Total 52 Types 29/2/12/5/1/1/2 Lore% 89 Gallery% 86 Achievement% 71 Wizard Run 0 Options --------- ASCII 0 Keyboard 0 Movement Mouse Keybinds 0 Fullscreen 0 Font 32/SmallcapsGlow Map View 76x50 Tactical HUD 1 Map Filters NONE Filters NONE Steam 0 RUN: 32f6984d-2cda-466f-8d12-76ad0a116796